Workbook

Sheet LKP (hidden)
B1: 8 | C1: 10 | D1: 12 | E1: 14 | F1: 16 | G1: 18 | H1: 20 | I1: 22 | J1: 24 | K1: 26 | L1: 28 | M1: 30 | N1: 32 | P1: qmd | Q1: Intercept | R1: =VLOOKUP($P$1,lkp_coeffs,6,FALSE) -> -4.918327795 | W1: maxden1 | X1: Intercept | Y1: =VLOOKUP($W$1,lkp_coeffs,12,FALSE) -> 4.141398562 | Z1: 0 | AG1: 0.45 | AJ1: 0.15 | AL1: 0.35 | AM1: alpha | AN1: =VLOOKUP($AN$5,lkp_coeffs,7,FALSE) -> 241.9728955 | AT1: 6 | AU1: 8 | AV1: 10 | AW1: 12 | AX1: 14 | AY1: 16 | AZ1: 18 | BA1: 20 | BB1: 22 | BC1: 24 | BD1: 26 | BE1: 28 | BF1: 30 | BI1: eqn | BJ1: mratio | BM1: 10 | BN1: 20 | BO1: 30 | BP1: 40 | BQ1: 50 | BR1: 60 | BS1: 70 | BT1: 80 | BU1: 90 | BW1: maxden2 | BX1: Intercept | BY1: =VLOOKUP($BW$1,lkp_coeffs,12,FALSE) -> 3.081113808 | BZ1: 0 | CE1: 0.45 | CH1: 0.15 | CJ1: 0.35 | CL1: topht4 | CM1: a | CN1: =VLOOKUP($CL$1,lkp_coeffs,2,FALSE) -> 26.61073667 | CQ1: 10 | CR1: 12 | CS1: 14 | CT1: 16 | CU1: 18 | CV1: 20 | CW1: 22 | CX1: 24 | CY1: 26 | CZ1: 28 | DA1: 30 | DB1: 32 | DC1: 34
A2: N | B2: ="QMD_"&TEXT(B$1,"00") -> QMD_08 | C2: ="QMD_"&TEXT(C$1,"00") -> QMD_10 | D2: QMD_12 | E2: QMD_14 | F2: QMD_16 | G2: QMD_18 | H2: QMD_20 | I2: QMD_22 | J2: QMD_24 | K2: QMD_26 | L2: QMD_28 | M2: QMD_30 | N2: QMD_32 | O2: MAXV | Q2: logd | R2: =VLOOKUP($P$1,lkp_coeffs,5,FALSE) -> 2.891894724 | X2: logn | Y2: =VLOOKUP($W$1,lkp_coeffs,11,FALSE) -> -1.453921546 | Z2: =VLOOKUP($W$1,lkp_coeffs,13,FALSE) -> 0.2374551122 | AD2: N | AE2: v | AG2: NZICMLL | AH2: v | AJ2: CC | AK2: v | AL2: xx | AM2: delta | AN2: =VLOOKUP($AN$5,lkp_coeffs,10,FALSE) -> -2.857636136 | AS2: N | AT2: ="THT_"&TEXT(AT$1,"00") -> THT_06 | AU2: ="THT_"&TEXT(AU$1,"00") -> THT_08 | AV2: THT_10 | AW2: THT_12 | AX2: THT_14 | AY2: THT_16 | AZ2: THT_18 | BA2: THT_20 | BB2: THT_22 | BC2: THT_24 | BD2: THT_26 | BE2: THT_28 | BF2: THT_30 | BI2: a | BJ2: =VLOOKUP($BJ$1,lkp_coeffs,2,FALSE) -> -3.447586674 | BL2: N | BM2: ="MR_"&TEXT(BM$1,"00") -> MR_10 | BN2: ="MR_"&TEXT(BN$1,"00") -> MR_20 | BO2: MR_30 | BP2: MR_40 | BQ2: MR_50 | BR2: MR_60 | BS2: MR_70 | BT2: MR_80 | BU2: MR_90 | BX2: logn | BY2: =VLOOKUP($BW$1,lkp_coeffs,11,FALSE) -> -0.5521095926 | BZ2: =VLOOKUP($BW$1,lkp_coeffs,13,FALSE) -> 0.09596416905 | CB2: N | CC2: QMD | CE2: NZICMLL | CF2: QMD | CH2: CC | CI2: QMD | CJ2: xx | CM2: b | CN2: =VLOOKUP($CL$1,lkp_coeffs,3,FALSE) -> 0.5910098122 | CP2: N | CQ2: ="THT_"&TEXT(CQ$1,"00") -> THT_10 | CR2: ="THT_"&TEXT(CR$1,"00") -> THT_12 | CS2: THT_14 | CT2: THT_16 | CU2: THT_18 | CV2: THT_20 | CW2: THT_22 | CX2: THT_24 | CY2: THT_26 | CZ2: THT_28 | DA2: THT_30 | DB2: THT_32 | DC2: THT_34 | DD2: MAXD
A3: 100 | B3: =IF(10^($R$1+$R$2*LOG10(B$1)+$R$3*LOG10($A3))>1.05*$O3,#N/A,10^($R$1+$R$2*LOG10(B$1)+$R$3*LOG10($A3))) -> 0.01160643798 | C3: =IF(10^($R$1+$R$2*LOG10(C$1)+$R$3*LOG10($A3))>1.05*$O3,#N/A,10^($R$1+$R$2*LOG10(C$1)+$R$3*LOG10($A3))) -> 0.02212852724 | D3: 0.03749180402 | E3: 0.05855168611 | F3: 0.08614816109 | G3: 0.1211082479 | H3: 0.1642478021 | I3: 0.2163728944 | J3: 0.278280897 | K3: 0.3507613608 | L3: 0.434596738 | M3: 0.5305629874 | N3: 0.6394300879 | O3: =10^($Y$3+$Y$2*LOG10($A3)) -> 17.12203849 | Q3: logn | R3: =VLOOKUP($P$1,lkp_coeffs,4,FALSE) -> 0.1856927907 | X3: Int2 | Y3: =Y1+1*Z1 -> 4.141398562 | AD3: =10^((LOG10(AE3)-$Y$1-$Z$1)/$Y$2) -> 16750.32934 | AE3: 0.01 | AG3: =AG$1*AD3 -> 7537.648205 | AH3: =AE3 -> 0.01 | AJ3: =AJ$1*AD3 -> 2512.549402 | AK3: =AE3 -> 0.01 | AL3: =AD3*AL$1 -> 5862.615271 | AM3: beta | AN3: =VLOOKUP($AN$5,lkp_coeffs,8,FALSE) -> -1.599128387 | AS3: =A3 -> 100 | AT3: =IF(0.95*$AS3>10^((LOG10(1/($AN$1*AT$1^$AN$3+$AN$4*$AS3*AT$1^$AN$2))-$Y$1-$Z$1)/$Y$2),#N/A, 1/($AN$1*AT$1^$AN$3+$AN$4*$AS3*AT$1^$AN$2)) -> 0.03985383706 | AU3: 0.07314597994 | AV3: 0.1147210959 | AW3: 0.1636662567 | AX3: 0.2192916511 | AY3: 0.2810668664 | AZ3: 0.3485737089 | BA3: 0.4214742116 | BB3: 0.4994891193 | BC3: 0.5823832083 | BD3: 0.6699550497 | BE3: 0.7620297045 | BF3: 0.8584533933 | BI3: b | BJ3: =VLOOKUP($BJ$1,lkp_coeffs,3,FALSE) -> 2.315079568 | BL3: =A3 -> 100 | BM3: =VLOOKUP(BM1,$BH$10:$BJ$18,2,FALSE) -> 0.02775266325 | BN3: =VLOOKUP(BN1,$BH$10:$BJ$18,2,FALSE) -> 0.04256251139 | BO3: 0.0566426048 | BP3: 0.0717982947 | BQ3: 0.08938741748 | BR3: 0.11175 | BS3: 0.143631114 | BT3: 0.198 | BU3: 0.3500548 | BX3: Int2 | BY3: =BY1+1*BZ1 -> 3.081113808 | CB3: =10^((LOG10(CC3)-$BY$1-$BZ$1)/$BY$2) -> 108488.5752 | CC3: 2 | CE3: =CE$1*CB3 -> 48819.85885 | CF3: =CC3 -> 2 | CH3: =CH$1*CB3 -> 16273.28628 | CI3: =CC3 -> 2 | CJ3: =CB3*CJ$1 -> 37971.00133 | CM3: c | CN3: =VLOOKUP($CL$1,lkp_coeffs,14,FALSE) -> -0.3061584495 | CP3: =A3 -> 100 | CQ3: =IF($CN$1*CQ$1^$CN$2*$CP3^$CN$3>$DD3,#N/A,$CN$1*CQ$1^$CN$2*$CP3^$CN$3) -> 25.33668608 | CR3: =IF($CN$1*CR$1^$CN$2*$CP3^$CN$3>$DD3,#N/A,$CN$1*CR$1^$CN$2*$CP3^$CN$3) -> 28.21933037 | CS3: 30.91098992 | CT3: 33.44927609 | CU3: 35.86066723 | CV3: 38.16466826 | CW3: 40.37615648 | CX3: 42.50679741 | CY3: 44.56594613 | CZ3: 46.5612461 | DA3: 48.49904129 | DB3: 50.38466837 | DC3: 52.22266918 | DD3: =10^($BY$3+$BY$2*LOG10($CP3)) -> 94.81883661
A4: 200 | B4: =IF(10^($R$1+$R$2*LOG10(B$1)+$R$3*LOG10($A4))>1.05*$O4,#N/A,10^($R$1+$R$2*LOG10(B$1)+$R$3*LOG10($A4))) -> 0.01320073324 | C4: 0.02516816836 | D4: 0.04264179109 | E4: 0.06659452199 | F4: 0.09798173185 | G4: 0.1377440415 | H4: 0.1868093747 | I4: 0.2460945266 | J4: 0.3165063988 | K4: 0.3989429973 | L4: 0.4942942543 | M4: 0.6034427166 | N4: 0.7272641298 | O4: =10^($Y$3+$Y$2*LOG10($A4)) -> 6.250020938 | Y4: =Y1+Z1*1.96 -> 4.141398562 | Z4: 0.174089 | AD4: =10^((LOG10(AE4)-$Y$1-$Z$1)/$Y$2) -> 10398.63701 | AE4: 0.02 | AG4: =AG$1*AD4 -> 4679.386656 | AH4: =AE4 -> 0.02 | AJ4: =AJ$1*AD4 -> 1559.795552 | AK4: =AE4 -> 0.02 | AL4: =AD4*AL$1 -> 3639.522955 | AM4: gamma | AN4: =VLOOKUP($AN$5,lkp_coeffs,9,FALSE) -> 18.92400849 | AS4: =A4 -> 200 | AT4: =IF(0.95*$AS4>10^((LOG10(1/($AN$1*AT$1^$AN$3+$AN$4*$AS4*AT$1^$AN$2))-$Y$1-$Z$1)/$Y$2),#N/A, 1/($AN$1*AT$1^$AN$3+$AN$4*$AS4*AT$1^$AN$2)) -> 0.02747366381 | AU4: =IF(0.95*$AS4>10^((LOG10(1/($AN$1*AU$1^$AN$3+$AN$4*$AS4*AU$1^$AN$2))-$Y$1-$Z$1)/$Y$2),#N/A, 1/($AN$1*AU$1^$AN$3+$AN$4*$AS4*AU$1^$AN$2)) -> 0.05364586181 | AV4: 0.08815784376 | AW4: 0.1303793298 | AX4: =IF(0.95*$AS4>10^((LOG10(1/($AN$1*AX$1^$AN$3+$AN$4*$AS4*AX$1^$AN$2))-$Y$1-$Z$1)/$Y$2),#N/A, 1/($AN$1*AX$1^$AN$3+$AN$4*$AS4*AX$1^$AN$2)) -> 0.1797177164 | AY4: 0.2356555857 | AZ4: 0.2977518887 | BA4: 0.3656325131 | BB4: =IF(0.95*$AS4>10^((LOG10(1/($AN$1*BB$1^$AN$3+$AN$4*$AS4*BB$1^$AN$2))-$Y$1-$Z$1)/$Y$2),#N/A, 1/($AN$1*BB$1^$AN$3+$AN$4*$AS4*BB$1^$AN$2)) -> 0.4389790808 | BC4: 0.5175187828 | BD4: 0.6010159189 | BE4: 0.68926509 | BF4: =IF(0.95*$AS4>10^((LOG10(1/($AN$1*BF$1^$AN$3+$AN$4*$AS4*BF$1^$AN$2))-$Y$1-$Z$1)/$Y$2),#N/A, 1/($AN$1*BF$1^$AN$3+$AN$4*$AS4*BF$1^$AN$2)) -> 0.7820857875 | BI4: c | BJ4: =VLOOKUP($BJ$1,lkp_coeffs,14,FALSE) -> 0.9781984841 | BL4: =A4 -> 200 | BM4: =BM3 -> 0.02775266325 | BN4: =BN3 -> 0.04256251139 | BO4: 0.0566426048 | BP4: 0.0717982947 | BQ4: 0.08938741748 | BR4: 0.11175 | BS4: 0.143631114 | BT4: 0.198 | BU4: 0.3500548 | BY4: =BY1+BZ1*1.96 -> 3.081113808 | CB4: =10^((LOG10(CC4)-$BY$1-$BZ$1)/$BY$2) -> 30913.4916 | CC4: 4 | CE4: =CE$1*CB4 -> 13911.07122 | CF4: =CC4 -> 4 | CH4: =CH$1*CB4 -> 4637.02374 | CI4: =CC4 -> 4 | CJ4: =CB4*CJ$1 -> 10819.72206 | CP4: =A4 -> 200 | CQ4: =IF($CN$1*CQ$1^$CN$2*$CP4^$CN$3>$DD4,#N/A,$CN$1*CQ$1^$CN$2*$CP4^$CN$3) -> 20.49212205 | CR4: 22.82358317 | CS4: 25.00057727 | CT4: 27.05352412 | CU4: 29.00383923 | CV4: 30.86729802 | CW4: 32.65593313 | CX4: 34.37917957 | CY4: 36.04460364 | CZ4: 37.65838732 | DA4: 39.22566156 | DB4: 40.75074263 | DC4: 42.23730393 | DD4: =10^($BY$3+$BY$2*LOG10($CP4)) -> 64.66854268
A5: 300 | B5: 0.01423301583 | C5: 0.027136291 | D5: 0.0459763315 | E5: 0.07180213918 | F5: 0.1056437938 | G5: 0.1485154716 | H5: 0.201417659 | I5: 0.2653388435 | J5: 0.3412568454 | K5: 0.4301398938 | L5: 0.5329475126 | M5: 0.6506312626 | N5: 0.7841353719 | O5: 3.466239736 | AD5: =10^((LOG10(AE5)-$Y$1-$Z$1)/$Y$2) -> 7867.952463 | AE5: 0.03 | AG5: =AG$1*AD5 -> 3540.578608 | AH5: 0.03 | AJ5: 1180.192869 | AK5: 0.03 | AL5: 2753.783362 | AN5: topht1 | AS5: 300 | AT5: =IF(0.95*$AS5>10^((LOG10(1/($AN$1*AT$1^$AN$3+$AN$4*$AS5*AT$1^$AN$2))-$Y$1-$Z$1)/$Y$2),#N/A, 1/($AN$1*AT$1^$AN$3+$AN$4*$AS5*AT$1^$AN$2)) -> 0.02096203057 | AU5: 0.04235449968 | AV5: 0.07158304928 | AW5: 0.1083440058 | AX5: 0.152243469 | AY5: 0.2028772144 | AZ5: 0.2598639008 | BA5: 0.3228567746 | BB5: 0.3915457219 | BC5: 0.4656552351 | BD5: 0.5449408865 | BE5: 0.6291854902 | BF5: =IF(0.95*$AS5>10^((LOG10(1/($AN$1*BF$1^$AN$3+$AN$4*$AS5*BF$1^$AN$2))-$Y$1-$Z$1)/$Y$2),#N/A, 1/($AN$1*BF$1^$AN$3+$AN$4*$AS5*BF$1^$AN$2)) -> 0.7181954608 | BL5: 300 | BM5: =BM4 -> 0.02775266325 | BN5: 0.04256251139 | BO5: 0.0566426048 | BP5: 0.0717982947 | BQ5: 0.08938741748 | BR5: 0.11175 | BS5: 0.143631114 | BT5: 0.198 | BU5: 0.3500548 | CB5: 8808.705995 | CC5: 8 | CE5: =CE$1*CB5 -> 3963.917698 | CF5: 8 | CH5: 1321.305899 | CI5: 8 | CJ5: 3083.047098 | CP5: 300 | CQ5: 18.09985547 | CR5: 20.15913997 | CS5: 22.08199005 | CT5: 23.89527426 | CU5: 25.61790804 | CV5: 27.26382517 | CW5: 28.8436536 | CX5: 30.36572688 | CY5: 31.83672803 | CZ5: 33.26211732 | DA5: 34.64642673 | DB5: 35.99346862 | DC5: 37.30648758 | DD5: 51.69772128
A6: 400 | B6: 0.0150140257 | C6: 0.02862534374 | D6: 0.04849919589 | E6: 0.07574214601 | F6: 0.1114407975 | G6: 0.1566649777 | H6: 0.2124700728 | I6: 0.2798988116 | J6: 0.3599826706 | K6: 0.4537430084 | L6: 0.5621920012 | M6: 0.6863334249 | N6: 0.8271633201 | O6: 2.28143172 | AD6: 6455.494068 | AE6: 0.04 | AG6: =AG$1*AD6 -> 2904.972331 | AH6: 0.04 | AJ6: 968.3241102 | AK6: 0.04 | AL6: 2259.422924 | AS6: 400 | AT6: 0.01694567447 | AU6: 0.03498984865 | AV6: 0.06025444771 | AW6: 0.09268018861 | AX6: 0.1320555492 | AY6: 0.1781039526 | AZ6: 0.2305297215 | BA6: 0.2890415006 | BB6: 0.3533634567 | BC6: 0.4232399173 | BD6: 0.4984365514 | BE6: 0.5787397968 | BF6: 0.6639554629 | BL6: 400 | BM6: 0.02775266325 | BN6: 0.04256251139 | BO6: 0.0566426048 | BP6: 0.0717982947 | BQ6: 0.08938741748 | BR6: 0.11175 | BS6: 0.143631114 | BT6: 0.198 | BU6: 0.3500548 | CB6: 5880.108581 | CC6: 10 | CE6: =CE$1*CB6 -> 2646.048862 | CF6: 10 | CH6: 882.0162872 | CI6: 10 | CJ6: 2058.038003 | CP6: 400 | CQ6: 16.57387492 | CR6: 18.45954323 | CS6: 20.22027976 | CT6: 21.88068781 | CU6: 23.45808807 | CV6: 24.96523959 | CW6: 26.41187428 | CX6: 27.8056231 | CY6: 29.15260562 | CZ6: 30.45782179 | DA6: 31.72542146 | DB6: 32.95889561 | DC6: 34.16121526 | DD6: 44.1053757
A7: 500 | B7: 0.01564921819 | C7: 0.02983638491 | D7: 0.05055103232 | E7: 0.07894653923 | F7: 0.1161554796 | G7: 0.1632929414 | H7: 0.2214589607 | I7: 0.2917403807 | J7: 0.375212316 | K7: 0.4729393356 | L7: 0.5859764374 | M7: 0.7153698635 | N7: 0.8621577938 | O7: 1.649331371 | AD7: 5537.009415 | AE7: 0.05 | AG7: 2491.654237 | AH7: 0.05 | AJ7: 830.5514123 | AK7: 0.05 | AL7: 1937.953295 | AS7: 500 | AT7: 0.01422092431 | AU7: 0.02980697602 | AV7: 0.05202160439 | AW7: 0.08097346321 | AX7: 0.1165947514 | AY7: 0.1587224169 | AZ7: 0.2071464398 | BA7: 0.2616381265 | BB7: 0.321966346 | BC7: 0.3879065261 | BD7: 0.4592453303 | BE7: 0.5357827769 | BF7: 0.6173328713 | BL7: 500 | BM7: 0.02775266325 | BN7: 0.04256251139 | BO7: 0.0566426048 | BP7: 0.0717982947 | BQ7: 0.08938741748 | BR7: 0.11175 | BS7: 0.143631114 | BT7: 0.198 | BU7: 0.3500548 | CB7: 4226.389637 | CC7: 12 | CE7: 1901.875337 | CF7: 12 | CH7: 633.9584456 | CI7: 12 | CJ7: 1479.236373 | CP7: 500 | CQ7: 15.47940409 | CR7: 17.24055058 | CS7: 18.88501529 | CT7: 20.43577679 | CU7: 21.90901199 | CV7: 23.3166374 | CW7: 24.66774226 | CX7: 25.96945361 | CY7: 27.22748693 | CZ7: 28.44651196 | DA7: 29.63040454 | DB7: 30.78242511 | DC7: 31.9053485 | DD7: 38.99299356
A8: 600 | B8: 0.01618810573 | C8: 0.03086381362 | D8: 0.05229177881 | E8: 0.08166509718 | F8: 0.1201553433 | G8: 0.1689160039 | H8: 0.2290849951 | I8: 0.3017865859 | J8: 0.3881329131 | K8: 0.4892252045 | L8: 0.6061547874 | M8: 0.7400039317 | N8: 0.8918465673 | O8: 1.265274046 | AD8: 4884.440181 | AE8: 0.06 | AG8: 2197.998082 | AH8: 0.06 | AJ8: 732.6660272 | AK8: 0.06 | AL8: 1709.554063 | AS8: 600 | AT8: 0.01225103976 | AU8: 0.02596143718 | AV8: 0.04576809791 | AW8: 0.07189249642 | AX8: 0.1043747642 | AY8: 0.1431451499 | AZ8: 0.1880699707 | BA8: 0.2389808866 | BB8: 0.2956933495 | BC8: 0.3580180595 | BD8: 0.4257679205 | BE8: 0.4987621089 | BF8: 0.5768283016 | BL8: 600 | BM8: 0.02775266325 | BN8: 0.04256251139 | BO8: 0.0566426048 | BP8: 0.0717982947 | BQ8: 0.08938741748 | BR8: 0.11175 | BS8: 0.143631114 | BT8: 0.198 | BU8: 0.3500548 | CB8: 3196.783248 | CC8: 14 | CE8: 1438.552462 | CF8: 14 | CH8: 479.5174872 | CI8: 14 | CJ8: 1118.874137 | CP8: 600 | CQ8: 14.63902762 | CR8: 16.30456151 | CS8: 17.85974826 | CT8: 19.32631896 | CU8: 20.71957226 | CV8: 22.05077772 | CW8: 23.32853113 | CX8: 24.55957261 | CY8: 25.74930732 | CZ8: 26.90215152 | DA8: 28.0217706 | DB8: 29.111248 | DC8: 30.1732079 | DD8: 35.25898877
A9: 700 | B9: 0.01665818069 | C9: 0.03176004608 | D9: 0.0538102428 | E9: 0.0840365122 | F9: 0.1236444494 | G9: 0.1738210363 | H9: 0.2357372323 | I9: 0.3105499532 | J9: 0.3994036303 | K9: 0.5034314694 | L9: 0.6237564877 | M9: 0.7614923826 | N9: 0.9177442692 | O9: 1.011228311 | AD9: 4393.080148 | AE9: 0.07 | AG9: 1976.886067 | AH9: 0.07 | AJ9: 658.9620222 | AK9: 0.07 | AL9: 1537.578052 | AS9: 700 | AT9: 0.01076049446 | AU9: 0.02299477287 | AV9: 0.04085671992 | AW9: 0.06464295443 | AX9: 0.09447327083 | AY9: 0.1303521822 | AZ9: 0.1722107856 | BA9: 0.2199350353 | BB9: 0.2733846974 | BC9: 0.3324059506 | BD9: 0.3968396693 | BE9: 0.4665267817 | BF9: 0.5413116516 | BL9: 700 | BM9: 0.02775266325 | BN9: 0.04256251139 | BO9: 0.0566426048 | BP9: 0.0717982947 | BQ9: 0.08938741748 | BR9: 0.11175 | BS9: 0.143631114 | BT9: 0.198 | BU9: 0.3500548 | CB9: 2510.014149 | CC9: 16 | CE9: 1129.506367 | CF9: 16 | CH9: 376.5021223 | CI9: 16 | CJ9: 878.504952 | CP9: 700 | CQ9: 13.964195 | CR9: 15.5529508 | CS9: 17.03644627 | CT9: 18.43541072 | CU9: 19.76443757 | CV9: 21.03427687 | CW9: 22.25312816 | CX9: 23.42742086 | CY9: 24.56231097 | CZ9: 25.66201113 | DA9: 26.73001781 | DB9: 27.76927228 | DC9: 28.78227775 | DD9: 32.38231461
A10: 800 | B10: 0.01707639748 | C10: 0.03255740713 | D10: 0.05516119145 | E10: 0.08614631522 | F10: 0.126748641 | G10: 0.1781849507 | H10: 0.2416556017 | I10: 0.3183465551 | J10: 0.4094309739 | K10: 0.5160705141 | L10: 0.639416387 | M10: 0.7806102504 | O10: 0.8327861208 | AD10: 4007.583264 | AE10: 0.08 | AG10: 1803.412469 | AH10: 0.08 | AJ10: 601.1374896 | AK10: 0.08 | AL10: 1402.654143 | AS10: 800 | AT10: 0.009593307093 | AU10: 0.02063658935 | AV10: 0.03689727103 | AW10: 0.05872155258 | AX10: 0.08628761191 | AY10: 0.1196582526 | AZ10: 0.1588182782 | BA10: 0.2037008651 | BB10: 0.2542060631 | BC10: 0.3102136986 | BD10: 0.37159231 | BE10: 0.4382052826 | BF10: 0.5099150076 | BH10: 10 | BI10: 0.02775266325 | BJ10: =$BJ$4/(1+EXP($BJ$2-$BJ$3*LOG10(BI10))) -> 0.450956949 | BL10: 800 | BM10: 0.02775266325 | BN10: 0.04256251139 | BO10: 0.0566426048 | BP10: 0.0717982947 | BQ10: 0.08938741748 | BR10: 0.11175 | BS10: 0.143631114 | BT10: 0.198 | BU10: 0.3500548 | CB10: 2027.808554 | CC10: 18 | CE10: 912.5138493 | CF10: 18 | CH10: 304.1712831 | CI10: 18 | CJ10: 709.7329939 | CP10: 800 | CQ10: 13.40482598 | CR10: 14.92994039 | CS10: 16.35401091 | CT10: 17.69693652 | CU10: 18.97272604 | CV10: 20.19169891 | CW10: 21.36172622 | CX10: 22.48897983 | CY10: 23.57840921 | CZ10: 24.63405828 | DA10: 25.6592834 | DB10: 26.65690806 | DC10: 27.6293352 | DD10: 30.08084124
A11: 900 | B11: 0.01745399751 | C11: 0.03327732935 | D11: 0.05638093747 | E11: 0.08805121651 | F11: 0.1295513569 | G11: 0.1821250466 | H11: 0.2469991856 | I11: 0.3253859596 | J11: 0.4184844731 | K11: 0.5274820688 | L11: 0.6535554143 | O11: 0.7017165574 | AD11: 3695.728883 | AE11: 0.09 | AG11: 1663.077997 | AH11: 0.09 | AJ11: 554.3593325 | AK11: 0.09 | AL11: 1293.505109 | AS11: 900 | AT11: 0.008654550763 | AU11: 0.01871709467 | AV11: 0.03363744621 | AW11: 0.05379393858 | AX11: 0.07940734381 | AY11: 0.1105859221 | AZ11: 0.1473584871 | BA11: 0.1896985547 | BB11: 0.237541893 | BC11: 0.2907992161 | BD11: 0.3493653191 | BE11: 0.4131256147 | BF11: 0.4819607766 | BH11: 20 | BI11: 0.04256251139 | BJ11: =$BJ$4/(1+EXP($BJ$2-$BJ$3*LOG10(BI11))) -> 0.5556118982 | BL11: 900 | BM11: 0.02775266325 | BN11: 0.04256251139 | BO11: 0.0566426048 | BP11: 0.0717982947 | BQ11: 0.08938741748 | BR11: 0.11175 | BS11: 0.143631114 | BT11: 0.198 | BU11: 0.3500548 | CB11: 1675.519167 | CC11: 20 | CE11: 753.9836253 | CF11: 20 | CH11: 251.3278751 | CI11: 20 | CJ11: 586.4317086 | CP11: 900 | CQ11: 12.93005593 | CR11: 14.40115407 | CS11: 15.77478709 | CT11: 17.07014916 | CU11: 18.30075297 | CV11: 19.47655244 | CW11: 20.60513991 | CX11: 21.69246862 | CY11: 22.74331277 | CZ11: 23.76157301 | DA11: 24.75048688 | DB11: 25.71277782 | DC11: 26.65076368 | DD11: 28.18695611
A12: 1000 | B12: 0.01779884192 | C12: 0.03393480056 | D12: 0.05749487431 | E12: 0.08979087353 | F12: 0.1321109459 | G12: 0.1857233514 | H12: 0.2518792303 | I12: 0.3318147177 | J12: 0.4267526093 | K12: 0.5379037066 | O12: 0.602051888 | AD12: 3437.386207 | AE12: 0.1 | AG12: 1546.823793 | AH12: 0.1 | AJ12: 515.607931 | AK12: 0.1 | AL12: 1203.085172 | AS12: 1000 | AT12: 0.007883143111 | AU12: 0.01712429321 | AV12: 0.03090686574 | AW12: 0.04962930015 | AX12: 0.07354326474 | AY12: 0.1027923427 | AZ12: 0.1374411943 | BA12: 0.1774974555 | BB12: 0.2229281112 | BC12: 0.273671687 | BD12: 0.3296472916 | BE12: 0.390761294 | BF12: 0.4569122297 | BH12: 30 | BI12: 0.0566426048 | BJ12: 0.622806386 | BL12: 1000 | BM12: 0.02775266325 | BN12: 0.04256251139 | BO12: 0.0566426048 | BP12: 0.0717982947 | BQ12: 0.08938741748 | BR12: 0.11175 | BS12: 0.143631114 | BT12: 0.198 | BU12: 0.3500548 | CB12: 1409.865024 | CC12: 22 | CE12: 634.4392607 | CF12: 22 | CH12: 211.4797536 | CI12: 22 | CJ12: 493.4527584 | CP12: 1000 | CQ12: 12.51962616 | CR12: 13.94402826 | CS12: 15.274059 | CT12: 16.5283033 | CU12: 17.7198449 | CV12: 18.8583218 | CW12: 19.95108529 | CX12: 21.00389969 | CY12: 22.02138762 | CZ12: 23.00732594 | DA12: 23.9648494 | DB12: 24.89659502 | DC12: 25.80480704 | DD12: 26.59408361
A13: 1100 | B13: 0.01811665729 | C13: 0.03454073895 | D13: 0.05852150038 | E13: 0.09139417562 | F13: 0.1344699135 | G13: 0.1890396198 | H13: 0.2563767753 | I13: 0.3377395875 | J13: 0.4343726861 | K13: 0.5475084927 | O13: 0.5241459155 | AD13: 2133.936038 | AE13: 0.2 | AG13: 960.2712171 | AH13: 0.2 | AJ13: 320.0904057 | AK13: 0.2 | AL13: 746.8776133 | AS13: 1100 | AT13: 0.007237997372 | AU13: 0.01578132232 | AV13: 0.0285863196 | AW13: 0.04606316549 | AX13: 0.06848572607 | AY13: 0.09602495238 | AZ13: 0.1287746051 | BA13: 0.1667710178 | BB13: 0.2100082243 | BC13: 0.2584494958 | BD13: 0.3120361087 | BE13: 0.3706939854 | BF13: 0.4343387051 | BH13: 40 | BI13: 0.0717982947 | BJ13: 0.6748064018 | BL13: 1100 | BM13: 0.02775266325 | BN13: 0.04256251139 | BO13: 0.0566426048 | BP13: 0.0717982947 | BQ13: 0.08938741748 | BR13: 0.11175 | BS13: 0.143631114 | BT13: 0.198 | BU13: 0.3500548 | CB13: 1204.296953 | CC13: 24 | CE13: 541.9336287 | CF13: 24 | CH13: 180.6445429 | CI13: 24 | CJ13: 421.5039335 | CP13: 1100 | CQ13: 12.15958186 | CR13: 13.54302044 | CS13: 14.83480164 | CT13: 16.05297589 | CU13: 17.21025067 | CV13: 18.3159868 | CW13: 19.37732418 | CX13: 20.39986133 | CY13: 21.38808794 | CZ13: 22.34567226 | DA13: 23.27565889 | DB13: 24.180609 | DC13: 25.06270231 | DD13: 25.23084126
A14: 1200 | B14: 0.01841175267 | C14: 0.03510335998 | D14: 0.05947473497 | E14: 0.09288286079 | F14: 0.136660243 | G14: 0.1921188147 | H14: 0.2605527997 | I14: 0.3432408999 | J14: 0.4414480185 | O14: 0.4618602677 | AD14: 1614.606538 | AE14: 0.3 | AG14: 726.572942 | AH14: 0.3 | AJ14: 242.1909807 | AK14: 0.3 | AL14: 565.1122882 | AS14: 1200 | AT14: 0.00669045926 | AU14: 0.01463367769 | AV14: 0.02658989948 | AW14: 0.04297516646 | AX14: 0.06407903818 | AY14: 0.09009359135 | AZ14: 0.1211361578 | BA14: 0.1572671291 | BB14: 0.1985038548 | BC14: 0.2448314583 | BD14: 0.2962112249 | BE14: 0.3525870899 | BF14: 0.413890641 | BH14: 50 | BI14: 0.08938741748 | BJ14: 0.7188934547 | BL14: 1200 | BM14: 0.02775266325 | BN14: 0.04256251139 | BO14: 0.0566426048 | BP14: 0.0717982947 | BQ14: 0.08938741748 | BR14: 0.11175 | BS14: 0.143631114 | BT14: 0.198 | BU14: 0.3500548 | CB14: 1041.768587 | CC14: 26 | CE14: 468.795864 | CF14: 26 | CH14: 156.265288 | CI14: 26 | CJ14: 364.6190053 | CP14: 1200 | CQ14: 11.83993596 | CR14: 13.18700731 | CS14: 14.44483071 | CT14: 15.63098211 | CU14: 16.75783495 | CV14: 17.83450396 | CW14: 18.86794136 | CX14: 19.86359849 | CY14: 20.82584702 | CZ14: 21.75825878 | DA14: 22.66379831 | DB14: 23.54495948 | DD14: 24.04740979
A15: 1300 | B15: 0.01868745694 | C15: 0.03562901042 | D15: 0.06036533123 | E15: 0.09427372243 | F15: 0.1387066431 | G15: 0.1949956715 | H15: 0.2644544118 | I15: 0.3483807136 | O15: 0.4111205898 | AD15: 1324.75164 | AE15: 0.4 | AG15: 596.1382379 | AH15: 0.4 | AJ15: 198.712746 | AK15: 0.4 | AL15: 463.6630739 | AS15: 1300 | AT15: 0.006219935244 | AU15: 0.01364163478 | AV15: 0.02485412921 | AW15: 0.04027518419 | AX15: 0.06020516014 | AY15: 0.08485235028 | AZ15: 0.1143531401 | BA15: 0.1487880476 | BB15: 0.188194456 | BC15: 0.2325766923 | BD15: 0.2819139821 | BE15: 0.3361667115 | BF15: 0.3952813434 | BH15: 60 | BI15: 0.11175 | BJ15: 0.7593705241 | BL15: 1300 | BM15: 0.02775266325 | BN15: 0.04256251139 | BO15: 0.0566426048 | BP15: 0.0717982947 | BQ15: 0.08938741748 | BR15: 0.11175 | BS15: 0.143631114 | BT15: 0.198 | BU15: 0.3500548 | CB15: 910.9137242 | CC15: 28 | CE15: 409.9111759 | CF15: 28 | CH15: 136.6370586 | CI15: 28 | CJ15: 318.8198035 | CP15: 1300 | CQ15: 11.5533157 | CR15: 12.86777725 | CS15: 14.09515136 | CT15: 15.2525885 | CU15: 16.35216257 | CV15: 17.40276766 | CW15: 18.41118768 | CX15: 19.38274202 | CY15: 20.32169652 | CZ15: 21.23153652 | DA15: 22.11515482 | DB15: 22.97498491 | DD15: 23.00783806
A16: 1400 | B16: 0.01894639854 | C16: 0.03612270163 | D16: 0.06120177975 | E16: 0.09558002051 | F16: 0.1406286232 | G16: 0.1976976171 | H16: 0.2681188082 | I16: 0.3532080297 | O16: 0.3691264985 | AD16: 1136.266601 | AE16: 0.5 | AG16: 511.3199704 | AH16: 0.5 | AJ16: 170.4399901 | AK16: 0.5 | AL16: 397.6933103 | AS16: 1400 | AT16: 0.005811244314 | AU16: 0.01277555715 | AV16: 0.02333109166 | AW16: 0.03789440852 | AX16: 0.05677296826 | AY16: 0.08018740661 | AZ16: 0.1082894724 | BA16: 0.1411764951 | BB16: 0.1789030357 | BC16: 0.2214902448 | BD16: 0.2689333614 | BE16: 0.3212077064 | BF16: 0.3782734608 | BH16: 70 | BI16: 0.143631114 | BJ16: 0.7992462191 | BL16: 1400 | BM16: 0.02775266325 | BN16: 0.04256251139 | BO16: 0.0566426048 | BP16: 0.0717982947 | BQ16: 0.08938741748 | BR16: 0.11175 | BS16: 0.143631114 | BT16: 0.198 | BU16: 0.3500548 | CB16: 803.9088659 | CC16: 30 | CE16: 361.7589897 | CF16: 30 | CH16: 120.5863299 | CI16: 30 | CJ16: 281.3681031 | CP16: 1400 | CQ16: 11.29413639 | CR16: 12.57911019 | CS16: 13.77895022 | CT16: 14.91042219 | CU16: 15.98532916 | CV16: 17.01236568 | CW16: 17.99816349 | CX16: 18.94792263 | CY16: 19.86581325 | CZ16: 20.75524252 | DA16: 21.61903832 | DD16: 22.08545442
A17: 1500 | B17: 0.01919069146 | C17: 0.03658846404 | D17: 0.06199090922 | E17: 0.09681241949 | F17: 0.1424418742 | G17: 0.2002467099 | H17: 0.2715759046 | O17: 0.3338958698 | AD17: 1002.350877 | AE17: 0.6 | AG17: 451.0578946 | AH17: 0.6 | AJ17: 150.3526315 | AK17: 0.6 | AL17: 350.8228069 | AS17: 1500 | AT17: 0.005452949431 | AU17: 0.01201288528 | AV17: 0.02198393679 | AW17: 0.03577939139 | AX17: 0.05371099735 | AY17: 0.07600866396 | AZ17: 0.1028364846 | BA17: 0.1343058107 | BB17: 0.1704859107 | BC17: 0.2114126434 | BD17: 0.2570954982 | BE17: 0.3075232979 | BH17: 80 | BI17: 0.198 | BJ17: 0.8417235449 | BL17: 1500 | BM17: 0.02775266325 | BN17: 0.04256251139 | BO17: 0.0566426048 | BP17: 0.0717982947 | BQ17: 0.08938741748 | BR17: 0.11175 | BS17: 0.143631114 | BT17: 0.198 | BU17: 0.3500548 | CB17: 715.2209451 | CC17: 32 | CE17: 321.8494253 | CF17: 32 | CH17: 107.2831418 | CI17: 32 | CJ17: 250.3273308 | CP17: 1500 | CQ17: 11.05807508 | CR17: 12.31619135 | CS17: 13.49095324 | CT17: 14.59877606 | CU17: 15.65121616 | CV17: 16.65678636 | CW17: 17.62197978 | CX17: 18.55188779 | CY17: 19.45059337 | CZ17: 20.32143247 | DA17: 21.16717388 | DD17: 21.26000471
A18: 1600 | B18: 0.01942206284 | C18: 0.03702959059 | D18: 0.06273829877 | E18: 0.09797963242 | F18: 0.1441592159 | G18: 0.2026609719 | H18: 0.2748501427 | O18: 0.3039901291 | AD18: 901.5173848 | AE18: 0.7 | AG18: 405.6828232 | AH18: 0.7 | AJ18: 135.2276077 | AK18: 0.7 | AL18: 315.5310847 | AS18: 1600 | AT18: 0.00513627037 | AU18: 0.01133614316 | AV18: 0.02078386095 | AW18: 0.03388798644 | AX18: 0.05096241075 | AY18: 0.07224387619 | AZ18: 0.09790634602 | BA18: 0.128072846 | BB18: 0.1628252232 | BC18: 0.2022121764 | BD18: 0.2462558499 | BE18: 0.2949572379 | BH18: 90 | BI18: 0.3500548 | BJ18: 0.8962572635 | BL18: 1600 | BM18: 0.02775266325 | BN18: 0.04256251139 | BO18: 0.0566426048 | BP18: 0.0717982947 | BQ18: 0.08938741748 | BR18: 0.11175 | BS18: 0.143631114 | BT18: 0.198 | BU18: 0.3500548 | CB18: 640.8440247 | CC18: 34 | CE18: 288.3798111 | CF18: 34 | CH18: 96.1266037 | CI18: 34 | CJ18: 224.2954086 | CP18: 1600 | CQ18: 10.84172291 | CR18: 12.07522403 | CS18: 13.22700161 | CT18: 14.31314979 | CU18: 15.3449988 | CV18: 16.33089494 | CW18: 17.27720427 | CX18: 18.18891855 | CY18: 19.07004088 | CZ18: 19.92384194 | DD18: 20.51579871
A19: 1700 | B19: 0.01964194312 | C19: 0.03744880851 | D19: 0.06344856909 | E19: 0.09908887551 | F19: 0.1457912654 | G19: 0.2049553292 | H19: 0.2779617651 | O19: 0.2783423378 | AD19: 822.4083928 | AE19: 0.8 | AG19: 370.0837767 | AH19: 0.8 | AJ19: 123.3612589 | AK19: 0.8 | AL19: 287.8429375 | AS19: 1700 | AT19: 0.004854354596 | AU19: 0.01073158282 | AV19: 0.01970802435 | AW19: 0.03218651178 | AX19: 0.0484814396 | AY19: 0.06883443539 | AZ19: 0.09342729823 | BA19: 0.1223927514 | BB19: 0.1558233878 | BC19: 0.1937791034 | BD19: 0.2362932644 | BE19: 0.283377814 | BI19: 0.025 | BJ19: 0.4255572173 | BL19: 1700 | BM19: 0.02775266325 | BN19: 0.04256251139 | BO19: 0.0566426048 | BP19: 0.0717982947 | BQ19: 0.08938741748 | BR19: 0.11175 | BS19: 0.143631114 | BT19: 0.198 | BU19: 0.3500548 | CB19: 577.8179184 | CC19: 36 | CE19: 260.0180633 | CF19: 36 | CH19: 86.67268776 | CI19: 36 | CJ19: 202.2362714 | CP19: 1700 | CQ19: 10.6423485 | CR19: 11.85316609 | CS19: 12.983763 | CT19: 14.0499374 | CU19: 15.06281117 | CV19: 16.03057712 | CW19: 16.95948425 | CX19: 17.85443251 | CY19: 18.7193514 | CZ19: 19.55745144 | DD19: 19.84047063
A20: 1800 | B20: =IF(10^($R$1+$R$2*LOG10(B$1)+$R$3*LOG10($A20))>1.05*$O20,#N/A,10^($R$1+$R$2*LOG10(B$1)+$R$3*LOG10($A20))) -> 0.01985153116 | C20: 0.0378484035 | D20: 0.06412559277 | E20: 0.1001461967 | F20: 0.1473469213 | G20: 0.2071422913 | O20: 0.2561460879 | AD20: 758.4118034 | AE20: 0.9 | AG20: 341.2853115 | AH20: 0.9 | AJ20: 113.7617705 | AK20: 0.9 | AL20: 265.4441312 | AS20: 1800 | AT20: 0.004601775764 | AU20: 0.01018824051 | AV20: 0.01873808348 | AW20: 0.03064772663 | AX20: 0.04623081383 | AY20: 0.06573229868 | AZ20: 0.08934013973 | BA20: 0.1171950908 | BB20: 0.1493989127 | BC20: 0.1860212577 | BD20: 0.2271054328 | BE20: 0.2726732157 | BL20: 1800 | BM20: 0.02775266325 | BN20: =BN19 -> 0.04256251139 | BO20: =BO19 -> 0.0566426048 | BP20: =BP19 -> 0.0717982947 | BQ20: =BQ19 -> 0.08938741748 | BR20: =BR19 -> 0.11175 | BS20: =BS19 -> 0.143631114 | BT20: =BT19 -> 0.198 | BU20: =BU19 -> 0.3500548 | CB20: 523.9154816 | CC20: 38 | CE20: 235.7619667 | CF20: 38 | CH20: 78.58732225 | CI20: 38 | CJ20: 183.3704186 | CP20: 1800 | CQ20: 10.45773245 | CR20: 11.64754562 | CS20: 12.75852972 | CT20: 13.80620887 | CU20: 14.80151201 | CV20: 15.75248983 | CW20: 16.66528292 | CX20: 17.54470625 | CY20: 18.39462113 | CZ20: 19.21818239 | DD20: 19.22412718
A21: 1900 | B21: 0.02005184228 | C21: 0.03823031138 | D21: 0.06477264963 | E21: 0.1011567181 | F21: 0.1488337198 | G21: 0.2092324527 | O21: 0.2367816574 | AD21: 705.3965143 | AE21: 1 | AG21: 317.4284314 | AH21: 1 | AJ21: 105.8094771 | AK21: 1 | AL21: 246.88878 | AS21: 1900 | AT21: 0.004374181031 | AU21: 0.009697265884 | AV21: 0.0178591366 | AW21: 0.02924936187 | AX21: 0.044179877 | AY21: 0.06289771021 | AZ21: 0.08559559431 | BA21: 0.1124209051 | BB21: 0.1434832132 | BC21: 0.1788606641 | BD21: 0.2186053628 | BL21: 1900 | BM21: 0.02775266325 | BN21: 0.04256251139 | BO21: 0.0566426048 | BP21: 0.0717982947 | BQ21: 0.08938741748 | BR21: 0.11175 | BS21: 0.143631114 | BT21: 0.198 | BU21: 0.3500548 | CB21: 477.4341224 | CC21: 40 | CE21: 214.8453551 | CF21: 40 | CH21: 71.61511837 | CI21: 40 | CJ21: 167.1019429 | CP21: 1900 | CQ21: 10.28604905 | CR21: 11.45632918 | CS21: 12.54907439 | CT21: 13.5795539 | CU21: 14.55851727 | CV21: 15.49388299 | CW21: 16.39169087 | CX21: 17.2566768 | CY21: 18.09263872 | DD21: 18.65874772
A22: 2000 | B22: 0.02024374443 | C22: 0.03859618693 | D22: 0.06539254334 | E22: 0.1021248182 | F22: 0.1502581032 | G22: 0.2112348701 | O22: 0.2197657077 | AS22: 2000 | AT22: 0.004168038105 | AU22: 0.009251436167 | AV22: 0.01705895268 | AW22: 0.02797303534 | AX22: 0.04230318165 | AY22: 0.06029748828 | AZ22: 0.08215231479 | BA22: 0.1080204669 | BB22: 0.1380181539 | BC22: 0.1722309081 | BD22: 0.2107186163 | BL22: 2000 | BM22: 0.02775266325 | BN22: 0.04256251139 | BO22: 0.0566426048 | BP22: 0.0717982947 | BQ22: 0.08938741748 | BR22: 0.11175 | BS22: 0.143631114 | BT22: 0.198 | BU22: 0.3500548 | CB22: 437.0535612 | CC22: 42 | CE22: =CE$1*CB22 -> 196.6741025 | CF22: =CC22 -> 42 | CH22: =CH$1*CB22 -> 65.55803418 | CI22: =CC22 -> 42 | CJ22: =CB22*CJ$1 -> 152.9687464 | CP22: 2000 | CQ22: 10.12577993 | CR22: 11.27782568 | CS22: 12.35354459 | CT22: 13.36796799 | CU22: 14.33167792 | CV22: 15.25246951 | CW22: 16.13628845 | CX22: 16.98779685 | CY22: 17.81073347 | DD22: 18.13775292
A23: 2100 | B23: 0.02042798573 | C23: 0.03894745653 | D23: 0.06598769052 | E23: 0.1030542713 | F23: 0.1516256244 | G23: 0.2131573498 | O23: 0.2047162641 | AS23: 2100 | AT23: 0.003980450594 | AU23: 0.008844798457 | AV23: 0.01632739873 | AW23: 0.0268034392 | AX23: 0.04057942801 | AY23: 0.05790372032 | AZ23: 0.07897534982 | BA23: 0.1039515409 | BB23: 0.1329541315 | BC23: 0.1660750705 | BD23: 0.2033811232 | BL23: 2100 | BM23: 0.02775266325 | BN23: 0.04256251139 | BO23: 0.0566426048 | BP23: 0.0717982947 | BQ23: 0.08938741748 | BR23: 0.11175 | BS23: 0.143631114 | BT23: 0.198 | BU23: 0.3500548 | CB23: 401.7367772 | CC23: 44 | CE23: 180.7815497 | CF23: 44 | CH23: 60.26051658 | CI23: 44 | CJ23: 140.607872 | CP23: 2100 | CQ23: 9.975649954 | CR23: 11.11061489 | CS23: 12.17038464 | CT23: 13.16976768 | CU23: 14.11918916 | CV23: 15.02632862 | CW23: 15.89704361 | CX23: 16.73592712 | CY23: =IF($CN$1*CY$1^$CN$2*$CP23^$CN$3>$DD23,#N/A,$CN$1*CY$1^$CN$2*$CP23^$CN$3) -> 17.54666246 | DD23: 17.65568884
A24: 2200 | B24: 0.02060521588 | C24: 0.03928535883 | D24: 0.06656018986 | E24: 0.1039483547 | F24: 0.1529411056 | O24: 0.1913278578 | AS24: 2200 | AT24: 0.003809021072 | AU24: 0.008472402404 | AV24: 0.01565600846 | AW24: 0.02572772307 | AX24: 0.03899065204 | AY24: 0.05569275697 | AZ24: 0.07603495327 | BA24: 0.1001780249 | BB24: 0.1282485649 | BC24: 0.1603440889 | BD24: 0.1965374369 | BL24: 2200 | BM24: 0.02775266325 | BN24: 0.04256251139 | BO24: 0.0566426048 | BP24: 0.0717982947 | BQ24: 0.08938741748 | BR24: 0.11175 | BS24: 0.143631114 | BT24: 0.198 | BU24: 0.3500548 | CB24: 370.659748 | CC24: 46 | CE24: 166.7968866 | CF24: 46 | CH24: 55.59896219 | CI24: 46 | CJ24: 129.7309118 | CP24: 2200 | CQ24: =IF($CN$1*CQ$1^$CN$2*$CP24^$CN$3>$DD24,#N/A,$CN$1*CQ$1^$CN$2*$CP24^$CN$3) -> 9.834578789 | CR24: 10.95349356 | CS24: 11.99827652 | CT24: 12.98352674 | CU24: 13.91952192 | CV24: 14.81383303 | CW24: 15.67223475 | CX24: 16.49925515 | DD24: 17.20799151
A25: 2300 | B25: 0.0207760029 | C25: 0.03961097683 | D25: 0.0671118762 | E25: 0.1048099341 | F25: 0.154208763 | O25: 0.1793535709 | AS25: 2300 | AT25: 0.003651748067 | AU25: 0.008130097681 | AV25: 0.01503765313 | AW25: 0.02473501986 | AX25: 0.03752159704 | AY25: 0.05364442805 | AZ25: 0.07330565 | BA25: 0.09666887488 | BB25: 0.1238646953 | BC25: 0.1549954471 | BD25: 0.1901393311 | BL25: 2300 | BM25: 0.02775266325 | BN25: 0.04256251139 | BO25: 0.0566426048 | BP25: 0.0717982947 | BQ25: 0.08938741748 | BR25: 0.11175 | BS25: 0.143631114 | BT25: 0.198 | BU25: 0.3500548 | CB25: 343.1607767 | CC25: 48 | CE25: 154.4223495 | CF25: 48 | CH25: 51.4741165 | CI25: 48 | CJ25: 120.1062718 | CP25: 2300 | CQ25: 9.701643852 | CR25: 10.80543415 | CS25: 11.83609468 | CT25: 12.80802717 | CU25: 13.73137042 | CV25: 14.61359304 | CW25: 15.46039166 | CX25: 16.27623314 | DD25: 16.79080901
A26: 2400 | B26: 0.02094084645 | C26: 0.03992526319 | D26: 0.06764436362 | E26: 0.1056415302 | F26: 0.1554323054 | O26: 0.1685918616 | AS26: 2400 | AT26: 0.00350694756 | AU26: 0.007814378645 | AV26: 0.01446628744 | AW26: 0.02381607743 | AX26: 0.03615922213 | AY26: 0.05174142551 | AZ26: 0.07076549589 | BA26: 0.0933972496 | BB26: 0.1197706238 | BC26: 0.1499921189 | BL26: 2400 | BM26: 0.02775266325 | BN26: 0.04256251139 | BO26: 0.0566426048 | BP26: 0.0717982947 | BQ26: 0.08938741748 | BR26: 0.11175 | BS26: 0.143631114 | BT26: 0.198 | BU26: 0.3500548 | CB26: 318.7033921 | CC26: 50 | CE26: 143.4165264 | CF26: 50 | CH26: 47.80550881 | CI26: 50 | CJ26: 111.5461872 | CP26: 2400 | CQ26: 9.576051582 | CR26: 10.6655528 | CS26: 11.68287096 | CT26: 12.64222133 | CU26: 13.55361147 | CV26: 14.42441331 | CW26: 15.26024974 | CX26: 16.06552977 | DD26: 16.40086508
A27: 2500 | B27: 0.02110018857 | C27: 0.04022906065 | D27: 0.06815907998 | E27: 0.1064453728 | F27: 0.1566150137 | O27: 0.1588767583 | AS27: 2500 | AT27: 0.003373192447 | AU27: 0.007522263841 | AV27: 0.01393675127 | AW27: 0.02296296929 | AX27: 0.03489231408 | AY27: 0.0499688131 | AZ27: 0.06839548653 | BA27: 0.0903398224 | BB27: 0.1159385339 | BC27: 0.1453017092 | BL27: 2500 | BM27: 0.02775266325 | BN27: 0.04256251139 | BO27: 0.0566426048 | BP27: 0.0717982947 | BQ27: 0.08938741748 | BR27: 0.11175 | BS27: 0.143631114 | BT27: 0.198 | BU27: 0.3500548 | CB27: 296.84881 | CC27: 52 | CE27: 133.5819645 | CF27: 52 | CH27: 44.5273215 | CI27: 52 | CJ27: 103.8970835 | CP27: 2500 | CQ27: 9.457114887 | CR27: 10.53308426 | CS27: 11.53776709 | CT27: 12.48520212 | CU27: 13.3852726 | CV27: 14.24525888 | CW27: 15.07071404 | CX27: 15.86599231 | DD27: 16.03535333
A28: 2600 | B28: 0.02125442228 | C28: 0.04052311856 | D28: 0.06865729486 | E28: 0.1072234448 | O28: 0.1500704659 | AS28: 2600 | AT28: 0.003249265344 | AU28: 0.007251201557 | AV28: 0.01344461331 | AW28: 0.02216886541 | AX28: 0.03371117798 | AY28: 0.04831363362 | AZ28: 0.06617908093 | BA28: 0.08747622429 | BB28: 0.1123440588 | BC28: 0.1408957524 | BL28: 2600 | BM28: 0.02775266325 | BN28: 0.04256251139 | BO28: 0.0566426048 | BP28: 0.0717982947 | BQ28: 0.08938741748 | BR28: 0.11175 | BS28: 0.143631114 | BT28: 0.198 | BU28: 0.3500548 | CB28: 90.81356828 | CC28: 100 | CE28: 40.86610573 | CF28: 100 | CH28: 13.62203524 | CI28: 100 | CJ28: 31.7847489 | CP28: 2600 | CQ28: 9.344235261 | CR28: 10.40736192 | CS28: 11.40005291 | CT28: 12.33617941 | CU28: 13.22550669 | CV28: 14.07522822 | CW28: 14.89083079 | CX28: 15.67661666 | DD28: 15.69185418
A29: 2700 | B29: 0.0214038987 | C29: 0.04080810635 | D29: 0.06914014246 | E29: 0.1079775173 | O29: 0.1420577238 | AS29: 2700 | AT29: 0.003134121427 | AU29: 0.00699899509 | AV29: 0.01298604686 | AW29: 0.02142784895 | AX29: 0.03260738865 | AY29: 0.04676459157 | AZ29: 0.0641018149 | BA29: 0.08478858956 | BB29: 0.1089657624 | BC29: 0.1367491337 | BL29: 2700 | BM29: 0.02775266325 | BN29: 0.04256251139 | BO29: 0.0566426048 | BP29: 0.0717982947 | BQ29: 0.08938741748 | BR29: 0.11175 | BS29: 0.143631114 | BT29: 0.198 | BU29: 0.3500548 | CP29: 2700 | CQ29: 9.23688847 | CR29: 10.2878019 | CS29: 11.26908884 | CT29: 12.19446109 | CU29: 13.07357176 | CV29: 13.91353167 | CW29: 14.71976458 | DD29: 15.36826914
A30: 2800 | B30: 0.02154893289 | C30: 0.04108462468 | D30: 0.06960864047 | E30: 0.1087091799 | O30: 0.134741453 | AS30: 2800 | AT30: 0.003026858906 | AU30: 0.006763743079 | AV30: 0.01255773006 | AW30: 0.02073476861 | AX30: 0.03157358938 | AY30: 0.04531179511 | AZ30: 0.06215098499 | BA30: 0.08226118267 | BB30: 0.1057847121 | BC30: 0.1328396105 | BL30: 2800 | BM30: 0.02775266325 | BN30: 0.04256251139 | BO30: 0.0566426048 | BP30: 0.0717982947 | BQ30: 0.08938741748 | BR30: 0.11175 | BS30: 0.143631114 | BT30: 0.198 | BU30: 0.3500548 | CP30: 2800 | CQ30: 9.134612976 | CR30: 10.17389017 | CS30: 11.1443118 | CT30: 12.05943786 | CU30: 12.92881457 | CV30: 13.75947402 | CW30: 14.55677991 | DD30: 15.06276815
A31: 2900 | B31: 0.02168980864 | C31: 0.04135321466 | D31: 0.07006370569 | E31: 0.1094198642 | O31: 0.1280393647 | AS31: 2900 | AT31: 0.002926695359 | AU31: 0.006543791488 | AV31: 0.01215676533 | AW31: 0.02008511867 | AX31: 0.03060332776 | AY31: 0.04394654456 | AZ31: 0.06031538854 | BA31: 0.07988009 | BB31: 0.1027841231 | BC31: 0.1291474131 | BL31: 2900 | BM31: 0.02775266325 | BN31: 0.04256251139 | BO31: 0.0566426048 | BP31: 0.0717982947 | BQ31: 0.08938741748 | BR31: 0.11175 | BS31: 0.143631114 | BT31: 0.198 | BU31: 0.3500548 | CP31: 2900 | CQ31: 9.037000513 | CR31: 10.06517199 | CS31: 11.0252237 | CT31: 11.93057072 | CU31: 12.79065728 | CV31: 13.6124403 | CW31: 14.40122618 | DD31: 14.77374707
A32: 3000 | B32: 0.02182678262 | C32: 0.04161436561 | D32: 0.07050616714 | E32: 0.1101108649 | O32: 0.1218812922 | AS32: 3000 | AT32: 0.002832948609 | AU32: 0.006337694655 | AV32: 0.0117806137 | AW32: 0.01947494093 | AX32: 0.02969092085 | AY32: 0.04266115806 | AZ32: 0.05858510837 | BA32: 0.07763296353 | BB32: 0.09994906256 | BC32: 0.1256549101 | BL32: 3000 | BM32: 0.02775266325 | BN32: 0.04256251139 | BO32: 0.0566426048 | BP32: 0.0717982947 | BQ32: 0.08938741748 | BR32: 0.11175 | BS32: 0.143631114 | BT32: 0.198 | BU32: 0.3500548 | CP32: 3000 | CQ32: 8.94368835 | CR32: 9.961243371 | CS32: 10.911382 | CT32: 11.8073808 | CU32: 12.65858647 | CV32: 13.47188412 | CW32: 14.25252534 | DD32: 14.4997932
A33: 3100 | B33: 0.02196008769 | C33: 0.04186852154 | D33: 0.07093677709 | E33: 0.1107833569 | O33: 0.1162070747 | AS33: 3100 | AT33: 0.002745021176 | AU33: 0.006144183484 | AV33: 0.01142704102 | AW33: 0.01890074402 | AX33: 0.02883134383 | AY33: 0.04144882697 | AZ33: 0.05695133355 | BA33: 0.07550880671 | BB33: 0.09726620107 | BC33: 0.1223463272 | BL33: 3100 | BM33: 0.02775266325 | BN33: 0.04256251139 | BO33: 0.0566426048 | BP33: 0.0717982947 | BQ33: 0.08938741748 | BR33: 0.11175 | BS33: 0.143631114 | BT33: 0.198 | BU33: 0.3500548 | CP33: 3100 | CQ33: 8.854352888 | CR33: 9.861743898 | CS33: 10.80239192 | CT33: 11.68944089 | CU33: 12.53214416 | CV33: 13.33731805 | CW33: 14.11016171 | DD33: 14.2396569
A34: 3200 | B34: 0.02208993587 | C34: 0.04211608663 | D34: 0.07135622037 | E34: 0.1114384097 | O34: 0.110964864 | AS34: 3200 | AT34: 0.002662387519 | AU34: 0.005962139284 | AV34: 0.01109407353 | AW34: 0.0183594365 | AX34: 0.0280201374 | AY34: 0.04030349518 | AZ34: 0.05540620933 | BA34: 0.07349779445 | BB34: 0.09472360288 | BC34: 0.119207509 | BL34: 3200 | BM34: 0.02775266325 | BN34: 0.04256251139 | BO34: 0.0566426048 | BP34: 0.0717982947 | BQ34: 0.08938741748 | BR34: 0.11175 | BS34: 0.143631114 | BT34: 0.198 | BU34: 0.3500548 | CP34: 3200 | CQ34: 8.768704339 | CR34: 9.766350811 | CS34: 10.6978999 | CT34: 11.57636841 | CU34: 12.41092017 | CV34: 13.20830558 | CW34: 13.97367349 | DD34: 13.99222825
A35: 3300 | B35: 0.02221652073 | C35: 0.04235742999 | D35: 0.07176512231 | O35: 0.1061097603 | AS35: 3300 | AT35: 0.002584583534 | AU35: 0.00579057213 | AV35: 0.01077996103 | AW35: 0.01784827126 | AX35: 0.02725333037 | AY35: 0.03921975798 | AZ35: 0.05394271087 | BA35: 0.07159112119 | BB35: 0.09231054849 | BL35: 3300 | BM35: 0.02775266325 | BN35: 0.04256251139 | BO35: 0.0566426048 | BP35: 0.0717982947 | BQ35: 0.08938741748 | BR35: 0.11175 | BS35: 0.143631114 | BT35: 0.198 | BU35: 0.3500548 | CP35: 3300 | CQ35: 8.686482262 | CR35: 9.674774037 | CS35: 10.59758821 | CT35: 11.46781953 | CU35: 12.29454589 | CV35: 13.08445441 | DD35: 13.75651765
A36: 3400 | B36: 0.02234001956 | C36: 0.04259288959 | D36: 0.07216405556 | O36: 0.1016027058 | AS36: 3400 | AT36: 0.002511197824 | AU36: 0.005628602856 | AV36: 0.01048314604 | AW36: 0.01736479882 | AX36: 0.02652737471 | AY36: 0.03819277676 | AZ36: 0.05255453644 | BA36: 0.069780872 | BB36: 0.09001738357 | BL36: 3400 | BM36: 0.02775266325 | BN36: 0.04256251139 | BO36: 0.0566426048 | BP36: 0.0717982947 | BQ36: 0.08938741748 | BR36: 0.11175 | BS36: 0.143631114 | BT36: 0.198 | BU36: 0.3500548 | CP36: 3400 | CQ36: 8.607451808 | CR36: 9.58675201 | CS36: 10.50117033 | CT36: 11.3634842 | CU36: 12.18268893 | CV36: 12.96541078 | DD36: 13.53163957
A37: 3500 | B37: 0.02246059512 | C37: 0.04282277575 | D37: 0.07255354588 | O37: 0.09740957988 | AS37: 3500 | AT37: 0.002441864427 | AU37: 0.005475447983 | AV37: 0.01020223805 | AW37: 0.01690682811 | AX37: 0.0258390906 | AY37: 0.03721820676 | AZ37: 0.05123601672 | BA37: 0.06805991276 | BB37: 0.08783538988 | BL37: 3500 | BM37: 0.02775266325 | BN37: 0.04256251139 | BO37: 0.0566426048 | BP37: 0.0717982947 | BQ37: 0.08938741748 | BR37: 0.11175 | BS37: 0.143631114 | BT37: 0.198 | BU37: 0.3500548 | CP37: 3500 | CQ37: 8.531400541 | CR37: 9.502048121 | CS37: 10.40838708 | CT37: 11.26308197 | CU37: 12.0750486 | CV37: 12.8508547 | DD37: 13.31679896
A38: 3600 | B38: 0.02257839724 | C38: 0.04304737415 | D38: 0.07293407725 | O38: 0.09350045634 | AS38: 3600 | AT38: 0.002376256713 | AU38: 0.00533040705 | AV38: 0.009935991698 | AW38: 0.01647239327 | AX38: 0.02518561991 | AY38: 0.03629213566 | AZ38: 0.04998203739 | BA38: 0.06642179617 | BB38: 0.08575667446 | BL38: 3600 | BM38: 0.02775266325 | BN38: 0.04256251139 | BO38: 0.0566426048 | BP38: 0.0717982947 | BQ38: 0.08938741748 | BR38: 0.11175 | BS38: 0.143631114 | BT38: 0.198 | BU38: 0.3500548 | CP38: 3600 | CQ38: 8.458135726 | CR38: 9.42044771 | CS38: 10.31900334 | CT38: 11.16635839 | CU38: 11.97135212 | CV38: 12.74049586 | DD38: 13.11127972
A39: 3700 | B39: 0.02269356415 | C39: 0.04326694833 | D39: 0.07330609624 | J39: =IF(10^($R$1+$R$2*LOG10(J$1)+$R$3*LOG10($A39))>1.05*$O39,#N/A,10^($R$1+$R$2*LOG10(J$1)+$R$3*LOG10($A39))) ->  | O39: 0.08984898872 | AS39: 3700 | AT39: 0.002314082235 | AU39: 0.005192851897 | AV39: 0.009683288301 | AW39: 0.01605972543 | AX39: 0.0245643865 | AY39: 0.03541103108 | AZ39: 0.04878797287 | BA39: 0.06486068107 | BB39: 0.08377407429 | BL39: 3700 | BM39: 0.02775266325 | BN39: 0.04256251139 | BO39: 0.0566426048 | BP39: 0.0717982947 | BQ39: 0.08938741748 | BR39: 0.11175 | BS39: 0.143631114 | BT39: 0.198 | BU39: 0.3500548 | CP39: 3700 | CQ39: 8.38748202 | CR39: 9.341755481 | CS39: 10.23280516 | CT39: 11.07308197 | CU39: 11.87135131 | CV39: 12.63407013 | DD39: 12.9144349
A40: 3800 | B40: =IF(10^($R$1+$R$2*LOG10(B$1)+$R$3*LOG10($A40))>1.05*$O40,#N/A,10^($R$1+$R$2*LOG10(B$1)+$R$3*LOG10($A40))) -> 0.0228062237 | C40: 0.04348174204 | D40: 0.07367001579 | O40: 0.08643189985 | AS40: 3800 | AT40: 0.002255078374 | AU40: 0.005062217575 | AV40: 0.009443120171 | AW40: 0.01566722864 | AX40: 0.02397306226 | AY40: 0.03457169555 | AZ40: 0.04764962929 | BA40: 0.06337126282 | BB40: 0.08188107374 | BL40: 3800 | BM40: 0.02775266325 | BN40: 0.04256251139 | BO40: 0.0566426048 | BP40: 0.0717982947 | BQ40: 0.08938741748 | BR40: 0.11175 | BS40: 0.143631114 | BT40: 0.198 | BU40: 0.3500548 | CP40: 3800 | CQ40: 8.319279474 | CR40: 9.265793291 | CS40: 10.14959743 | CT40: 10.98304155 | CU40: 11.7748198 | CV40: 12.53133659 | DD40: 12.72567842
A41: 3900 | B41: 0.02291649435 | C41: 0.04369198114 | D41: 0.07402621858 | O41: 0.08322855512 | AS41: 3900 | AT41: 0.00219900863 | AU41: 0.004937994587 | AV41: 0.009214577169 | AW41: 0.01529345926 | AX41: 0.02340953802 | AY41: 0.0337712277 | AZ41: 0.04656319525 | BA41: 0.0619487131 | BB41: 0.08007173314 | BL41: 3900 | BM41: 0.02775266325 | BN41: 0.04256251139 | BO41: 0.0566426048 | BP41: 0.0717982947 | BQ41: 0.08938741748 | BR41: 0.11175 | BS41: 0.143631114 | BT41: 0.198 | BU41: 0.3500548 | CP41: =A41 -> 3900 | CQ41: 8.253381827 | CR41: 9.192398236 | CS41: 10.0692017 | CT41: 10.89604404 | CU41: 11.68155055 | CV41: 12.43207492 | DD41: 12.54447789
A42: 4000 | B42: 0.02302448611 | C42: 0.04389787537 | D42: 0.07437505996 | O42: 0.08022060427 | AS42: 4000 | AT42: 0.002145659452 | AU42: 0.004819722251 | AV42: 0.008996835186 | AW42: 0.01493710819 | AX42: 0.02287189836 | AY42: 0.03300698885 | AZ42: 0.04552519922 | BA42: 0.0605886276 | BB42: 0.07834062643 | BL42: 4000 | BM42: 0.02775266325 | BN42: 0.04256251139 | BO42: 0.0566426048 | BP42: 0.0717982947 | BQ42: 0.08938741748 | BR42: 0.11175 | BS42: 0.143631114 | BT42: 0.198 | BU42: 0.3500548 | CP42: 4000 | CQ42: 8.189655012 | CR42: 9.121420996 | CS42: 9.991454396 | CT42: 10.81191245 | CU42: 11.59135383 | CV42: 12.33608317 | DD42: 12.37034846
A43: 4100 | B43: 0.02313030131 | C43: 0.04409961984 | D43: 0.07471687051 | O43: 0.07739167925 | AS43: 4100 | AT43: 0.002094837524 | AU43: 0.004706982987 | AV43: 0.008789146207 | AW43: 0.01459698558 | AX43: 0.02235839987 | AY43: 0.03227657383 | AZ43: 0.04453247247 | BA43: 0.05928698051 | BB43: 0.07668278686 | BL43: 4100 | BM43: 0.02775266325 | BN43: 0.04256251139 | BO43: 0.0566426048 | BP43: 0.0717982947 | BQ43: 0.08938741748 | BR43: 0.11175 | BS43: 0.143631114 | BT43: 0.198 | BU43: 0.3500548 | CP43: 4100 | CQ43: 8.127975869 | CR43: 9.052724399 | CS43: 9.916205275 | CT43: 10.73048417 | CU43: 11.5040553 | DD43: 12.20284751
A44: 4200 | B44: 0.02323403535 | C44: 0.04429739641 | D44: 0.07505195835 | O44: 0.07472713821 | AS44: 4200 | AT44: 0.002046367419 | AU44: 0.004599397395 | AV44: 0.00859082973 | AW44: 0.01427200751 | AX44: 0.02186745226 | AY44: 0.03157778579 | AZ44: 0.04358211675 | BA44: 0.05804008468 | BB44: 0.07509365942 | BL44: 4200 | BM44: 0.02775266325 | BN44: 0.04256251139 | BO44: 0.0566426048 | BP44: 0.0717982947 | BQ44: 0.08938741748 | BR44: 0.11175 | BS44: 0.143631114 | BT44: 0.198 | BU44: 0.3500548 | CP44: 4200 | CQ44: 8.068231013 | CR44: 8.98618216 | CS44: 9.843316001 | CT44: 10.65160952 | CU44: 11.41949451 | DD44: 12.04157009
A45: 4300 | B45: 0.02333577728 | C45: 0.04449137487 | D45: 0.07538061116 | O45: 0.07221384777 | AS45: 4300 | AT45: 0.002000089581 | AU45: 0.004496619983 | AV45: 0.008401265317 | AW45: 0.01396118451 | AX45: 0.02139760193 | AY45: 0.03090861409 | AZ45: 0.04267147607 | BA45: 0.05684455675 | BB45: 0.07356905898 | BL45: 4300 | BM45: 0.02775266325 | BN45: 0.04256251139 | BO45: 0.0566426048 | BP45: 0.0717982947 | BQ45: 0.08938741748 | BR45: 0.11175 | BS45: 0.143631114 | BT45: 0.198 | BU45: 0.3500548 | CP45: 4300 | CQ45: 8.01031585 | CR45: 8.921677785 | CS45: 9.77265897 | CT45: 10.57515042 | CU45: 11.33752339 | DD45: 11.88614486
A46: 4400 | B46: 0.02343561037 | C46: 0.04468171399 | O46: 0.06983999703 | AS46: 4400 | AT46: 0.001955858567 | AU46: 0.00439833547 | AV46: 0.00821988611 | AW46: 0.01366361147 | AX46: 0.02094751758 | AY46: 0.03026721498 | AZ46: 0.04179811185 | BA46: 0.05569728651 | BB46: 0.07210513353 | BL46: 4400 | BM46: 0.02775266325 | BN46: 0.04256251139 | BO46: 0.0566426048 | BP46: 0.0717982947 | BQ46: 0.08938741748 | BR46: 0.11175 | BS46: 0.143631114 | BT46: 0.198 | BU46: 0.3500548 | CP46: 4400 | CQ46: 7.95413371 | CR46: 8.859103604 | CS46: 9.704116243 | CT46: 10.50097924 | CU46: 11.25800514 | DD46: 11.73623061
A47: 4500 | B47: 0.02353361262 | C47: 0.04486856249 | O47: 0.06759493807 | AS47: 4500 | AT47: 0.001913541521 | AU47: 0.004304255548 | AV47: 0.008046173169 | AW47: 0.01337845883 | AX47: 0.02051597762 | AY47: 0.02965189464 | AZ47: 0.04095978118 | BA47: 0.05459540988 | BB47: 0.07069833171 | BL47: 4500 | BM47: 0.02775266325 | BN47: 0.04256251139 | BO47: 0.0566426048 | BP47: 0.0717982947 | BQ47: 0.08938741748 | BR47: 0.11175 | BS47: 0.143631114 | BT47: 0.198 | BU47: 0.3500548 | CP47: 4500 | CQ47: 7.899595079 | CR47: 8.79835992 | CS47: 9.637578612 | CT47: 10.42897781 | CU47: 11.18081305 | DD47: 11.59151322
A48: 4600 | B48: 0.0236298572 | C48: 0.04505205986 | O48: 0.06546904881 | AS48: 4600 | AT48: 0.001873016843 | AU48: 0.004214116058 | AV48: 0.007879650513 | AW48: 0.01310496486 | AX48: 0.02010185907 | AY48: 0.02906109426 | AZ48: 0.04015441754 | BA48: 0.05353628501 | BB48: 0.06934537397 | BL48: 4600 | BM48: 0.02775266325 | BN48: 0.04256251139 | BO48: 0.0566426048 | BP48: 0.0717982947 | BQ48: 0.08938741748 | BR48: 0.11175 | BS48: 0.143631114 | BT48: 0.198 | BU48: 0.3500548 | CP48: 4600 | CQ48: 7.846616928 | CR48: 8.739354258 | CS48: 9.572944781 | CT48: 10.3590365 | CU48: 11.10582961 | DD48: 11.45170293
A49: 4700 | B49: 0.02372441283 | C49: 0.04523233712 | O49: 0.06345361449 | AS49: 4700 | AT49: 0.001834173018 | AU49: 0.004127674519 | AV49: 0.007719880766 | AW49: 0.01284242888 | AX49: 0.01970412785 | AY49: 0.0284933768 | AZ49: 0.03938011379 | BA49: 0.05251747116 | BB49: 0.0680432271 | BL49: 4700 | BM49: 0.02775266325 | BN49: 0.04256251139 | BO49: 0.0566426048 | BP49: 0.0717982947 | BQ49: 0.08938741748 | BR49: 0.11175 | BS49: 0.143631114 | BT49: 0.198 | BU49: 0.3500548 | CP49: 4700 | CQ49: 7.795122113 | CR49: 8.682000695 | CS49: 9.510120632 | CT49: 10.29105349 | CU49: 11.03294564 | DD49: 11.31653199
A50: 4800 | B50: 0.02381734416 | C50: 0.04540951754 | O50: 0.06154072515 | AS50: 4800 | AT50: 0.001796907596 | AU50: 0.004044707944 | AV50: 0.007566461321 | AW50: 0.01259020524 | AX50: 0.01932183012 | AY50: 0.02794741541 | AZ50: 0.03863510714 | BA50: 0.0515367099 | BL50: 4800 | BM50: 0.02775266325 | BN50: 0.04256251139 | BO50: 0.0566426048 | BP50: 0.0717982947 | BQ50: 0.08938741748 | BR50: 0.11175 | BS50: 0.143631114 | BT50: 0.198 | BU50: 0.3500548 | CP50: 4800 | CQ50: 7.745038841 | CR50: 8.626219272 | CS50: 9.44901858 | CT50: 10.22493398 | CU50: 10.96205951 | DD50: 11.18575255
A51: 4900 | B51: 0.02390871208 | C51: 0.04558371718 | O51: 0.05972318642 | AS51: 4900 | AT51: 0.001761126285 | AU51: 0.003965010919 | AV51: 0.007419020951 | AW51: 0.01234769805 | AX51: 0.01895408466 | AY51: 0.02742198299 | AZ51: 0.0379177657 | BA51: 0.05059190844 | BL51: 4900 | BM51: 0.02775266325 | BN51: 0.04256251139 | BO51: 0.0566426048 | BP51: 0.0717982947 | BQ51: 0.08938741748 | BR51: 0.11175 | BS51: 0.143631114 | BT51: 0.198 | BU51: 0.3500548 | CP51: 4900 | CQ51: 7.696300199 | CR51: 8.571935463 | CS51: 9.38955699 | CT51: 10.16058965 | CU51: 10.89307652 | DD51: 11.05913484
A52: 5000 | B52: 0.023998574 | C52: 0.04575504553 | O52: 0.05799444185 | AS52: 5000 | AT52: 0.001726742159 | AU52: 0.00388839391 | AV52: 0.007277216811 | AW52: 0.01211435646 | AX52: 0.01860007609 | AY52: 0.02691594303 | AZ52: 0.03722657656 | BA52: 0.04968112466 | BL52: 5000 | BM52: 0.02775266325 | BN52: 0.04256251139 | BO52: 0.0566426048 | BP52: 0.0717982947 | BQ52: 0.08938741748 | BR52: 0.11175 | BS52: 0.143631114 | BT52: 0.198 | BU52: 0.3500548 | CP52: 5000 | CQ52: 7.648843732 | CR52: 8.519079706 | CS52: 9.331659663 | CT52: 10.09793802 | CU52: 10.82590829 | DD52: 10.93646545
A53: 5100 | B53: 0.02408698413 | C53: 0.04592360595 | O53: 0.05634850499 | AS53: 5100 | AT53: 0.001693674949 | AU53: 0.003814681753 | AV53: 0.007140731777 | AW53: 0.01188967048 | AX53: 0.01825904881 | AY53: 0.02642824138 | AZ53: 0.03656013518 | BA53: 0.04880255385 | BL53: 5100 | BM53: 0.02775266325 | BN53: 0.04256251139 | BO53: 0.0566426048 | BP53: 0.0717982947 | BQ53: 0.08938741748 | BR53: 0.11175 | BS53: 0.143631114 | BT53: 0.198 | BU53: 0.3500548 | CP53: 5100 | CQ53: 7.602611058 | CR53: 8.467586978 | CS53: 9.275255376 | CT53: 10.03690204 | CU53: 10.76047216 | DD53: 10.81754594
A54: 5200 | B54: 0.02417399371 | C54: 0.04608949612 | O54: 0.05477989987 | AS54: 5200 | AT54: 0.001661850419 | AU54: 0.00374371232 | AV54: 0.007009272077 | AW54: 0.01167316727 | AX54: 0.01793030167 | AY54: 0.02595789894 | AZ54: 0.0359171358 | BA54: 0.04795451671 | BL54: 5200 | BM54: 0.02775266325 | BN54: 0.04256251139 | BO54: 0.0566426048 | BP54: 0.0717982947 | BQ54: 0.08938741748 | BR54: 0.11175 | BS54: 0.143631114 | BT54: 0.198 | BU54: 0.3500548 | CP54: 5200 | CQ54: 7.557547535 | CR54: 8.417396419 | CS54: 9.220277465 | CT54: 9.977409567 | CU54: 10.69669081 | DD54: 10.70219144
A55: 5300 | B55: 0.02425965125 | C55: 0.04625280851 | O55: 0.0532836087 | AS55: 5300 | AT55: 0.001631199811 | AU55: 0.003675335328 | AV55: 0.006882565182 | AW55: 0.01146440782 | AX55: 0.01761318309 | AY55: 0.02550400511 | AZ55: 0.03529636295 | BA55: 0.04713544869 | BL55: 5300 | BM55: 0.02775266325 | BN55: 0.04256251139 | BO55: 0.0566426048 | BP55: 0.0717982947 | BQ55: 0.08938741748 | BR55: 0.11175 | BS55: 0.143631114 | BT55: 0.198 | BU55: 0.3500548 | CP55: 5300 | CQ55: 7.513601953 | CR55: 8.368450992 | CS55: 9.16666345 | CT55: 9.919392984 | DD55: 10.59022957
A56: 5400 | B56: 0.02434400267 | C56: 0.04641363069 | O56: 0.05185502582 | AS56: 5400 | AT56: 0.001601659347 | AU56: 0.003609411276 | AV56: 0.006760357918 | AW56: 0.01126298397 | AX56: 0.0173070868 | AY56: 0.02506571185 | AZ56: 0.03469668375 | BA56: 0.04634389033 | BL56: 5400 | BM56: 0.02775266325 | BN56: 0.04256251139 | BO56: 0.0566426048 | BP56: 0.0717982947 | BQ56: 0.08938741748 | BR56: 0.11175 | BS56: 0.143631114 | BT56: 0.198 | BU56: 0.3500548 | CP56: 5400 | CQ56: 7.470726254 | CR56: 8.320697174 | CS56: 9.114354703 | CT56: 9.862788854 | DD56: 10.48149929
A57: 5500 | B57: 0.02442709153 | C57: 0.04657204572 | O57: 0.05048991694 | AS57: 5500 | AT57: 0.001573169786 | AU57: 0.003545810496 | AV57: 0.00664241478 | AW57: 0.01106851574 | AX57: 0.01701144795 | AY57: 0.02464222846 | AZ57: 0.03411704103 | BA57: 0.0455784786 | BL57: 5500 | BM57: 0.02775266325 | BN57: 0.04256251139 | BO57: 0.0566426048 | BP57: 0.0717982947 | BQ57: 0.08938741748 | BR57: 0.11175 | BS57: 0.143631114 | BT57: 0.198 | BU57: 0.3500548 | CP57: 5500 | CQ57: 7.428875292 | CR57: 8.27408468 | CS57: 9.063296144 | CT57: 9.807537572 | CW57: =IF($CN$1*CW$1^$CN$2*$CP57^$CN$3>$DD57,#N/A,$CN$1*CW$1^$CN$2*$CP57^$CN$3) ->  | DD57: 10.37585005
A58: 5600 | B58: 0.02450895918 | C58: 0.04672813241 | O58: 0.0491843832 | AS58: 5600 | AT58: 0.00154567603 | AU58: 0.003484412299 | AV58: 0.006528516415 | AW58: 0.01088064895 | AX58: 0.01672573965 | AY58: 0.02423281677 | AZ58: 0.03355644709 | BA58: 0.04483793903 | BL58: 5600 | BM58: 0.02775266325 | BN58: 0.04256251139 | BO58: 0.0566426048 | BP58: 0.0717982947 | BQ58: 0.08938741748 | BR58: 0.11175 | BS58: 0.143631114 | BT58: 0.198 | BU58: 0.3500548 | CP58: 5600 | CQ58: =IF($CN$1*CQ$1^$CN$2*$CP58^$CN$3>$DD58,#N/A,$CN$1*CQ$1^$CN$2*$CP58^$CN$3) -> 7.3880066 | CR58: 8.228566212 | CS58: 9.013435964 | CT58: 9.753583074 | DD58: 10.27314086
A59: 5700 | B59: 0.0245896449 | C59: 0.04688196567 | O59: 0.04793482913 | AS59: 5700 | AT59: 0.001519126766 | AU59: 0.003425104217 | AV59: 0.006418458262 | AW59: 0.01069905309 | AX59: 0.01644946981 | AY59: 0.02383678688 | AZ59: 0.03301397813 | BA59: 0.04412107866 | BL59: 5700 | BM59: 0.02775266325 | BN59: 0.04256251139 | BO59: 0.0566426048 | BP59: 0.0717982947 | BQ59: 0.08938741748 | BR59: 0.11175 | BS59: 0.143631114 | BT59: 0.198 | BU59: 0.3500548 | CP59: 5700 | CQ59: 7.348080191 | CR59: 8.184097234 | CS59: 8.964725378 | CT59: 9.700872571 | DD59: 10.17323955
A60: 5800 | B60: 0.02466918605 | C60: 0.04703361672 | M60: =IF(10^($R$1+$R$2*LOG10(M$1)+$R$3*LOG10($A60))>1.05*$O60,#N/A,10^($R$1+$R$2*LOG10(M$1)+$R$3*LOG10($A60))) ->  | O60: 0.0467379343 | AS60: 5800 | AT60: 0.001493474146 | AU60: 0.003367781307 | AV60: 0.006312049325 | AW60: 0.01052341932 | AX60: 0.01618217832 | AY60: 0.02345349324 | AZ60: 0.03248876911 | BA60: 0.04342677964 | BL60: 5800 | BM60: 0.02775266325 | BN60: 0.04256251139 | BO60: 0.0566426048 | BP60: 0.0717982947 | BQ60: 0.08938741748 | BR60: 0.11175 | BS60: 0.143631114 | BT60: 0.198 | BU60: 0.3500548 | CP60: 5800 | CQ60: 7.309058371 | CR60: 8.140635764 | CS60: 8.917118399 | CT60: 9.649356298 | DD60: 10.0760221
A61: 5900 | B61: 0.02474761819 | C61: 0.04718315336 | O61: 0.04559062793 | AS61: 5900 | AT61: 0.001468673501 | AU61: 0.003312345539 | AV61: 0.006209111068 | AW61: 0.01035345877 | AX61: 0.01592343451 | AY61: 0.02308233119 | AZ61: 0.03198000917 | BA61: 0.04275399338 | BL61: 5900 | BM61: 0.02775266325 | BN61: 0.04256251139 | BO61: 0.0566426048 | BP61: 0.0717982947 | BQ61: 0.08938741748 | BR61: 0.11175 | BS61: 0.143631114 | BT61: 0.198 | BU61: 0.3500548 | CP61: 5900 | CQ61: 7.27090557 | CR61: 8.098142184 | CS61: 8.870571632 | CT61: 9.598987297 | DD61: 9.981371952
A62: 6000 | B62: 0.02482497519 | O62: 0.04449006634 | AS62: 6000 | AT62: 0.001444683082 | AU62: 0.003258705231 | AV62: 0.006109476413 | AW62: 0.01018890091 | AX62: 0.01567283481 | AY62: 0.02272273373 | AZ62: 0.03148693748 | BA62: 0.04210173527 | BL62: 6000 | BM62: 0.02775266325 | BN62: 0.04256251139 | BO62: 0.0566426048 | BP62: 0.0717982947 | BQ62: 0.08938741748 | BR62: 0.11175 | BS62: 0.143631114 | BT62: 0.198 | BU62: 0.3500548 | CP62: =A62 -> 6000 | CQ62: 7.233588191 | CR62: 8.056579076 | CS62: 8.825044087 | CT62: 9.549721213 | DD62: 9.889179502
A63: 6100 | B63: 0.02490128933 | O63: 0.04343361271 | AS63: 6100 | AT63: 0.00142146382 | AU63: 0.003206774545 | AV63: 0.006012988839 | AW63: 0.01002949219 | AX63: 0.01543000067 | AY63: 0.02237416868 | AZ63: 0.0310088394 | BA63: 0.0414690799 | BL63: 6100 | BM63: 0.02775266325 | BN63: 0.04256251139 | BO63: 0.0566426048 | BP63: 0.0717982947 | BQ63: 0.08938741748 | BR63: 0.11175 | BS63: 0.143631114 | BT63: 0.198 | BU63: 0.3500548 | CP63: 6100 | CQ63: 7.197074468 | CR63: 8.015911058 | CS63: 8.780497009 | CT63: 9.501516109 | DD63: 9.79934154
A64: 6200 | B64: 0.02497659145 | O64: 0.04241881892 | AS64: 6200 | AT64: 0.001398979123 | AU64: 0.00315647303 | AV64: 0.005919501557 | AW64: 0.00987499463 | AX64: 0.01519457664 | AY64: 0.02203613598 | AZ64: 0.03054504306 | BA64: 0.04085515665 | BL64: 6200 | BM64: 0.02775266325 | BN64: 0.04256251139 | BO64: 0.0566426048 | BP64: 0.0717982947 | BQ64: 0.08938741748 | BR64: 0.11175 | BS64: 0.143631114 | BT64: 0.198 | BU64: 0.3500548 | CP64: 6200 | CQ64: 7.161334339 | CR64: 7.976104647 | CS64: 8.736893722 | CT64: 9.454332296 | DD64: 9.711760794
A65: 6300 | B65: 0.02505091095 | O65: 0.04144340929 | AS65: 6300 | AT65: 0.001377194674 | AU65: 0.003107725205 | AV65: 0.005828876767 | AW65: 0.009725184723 | AX65: 0.01496622864 | AY65: 0.02170816537 | AZ65: 0.03009491619 | BA65: 0.0402591457 | BL65: 6300 | BM65: 0.02775266325 | BN65: 0.04256251139 | BO65: 0.0566426048 | BP65: 0.0717982947 | BQ65: 0.08938741748 | BR65: 0.11175 | BS65: 0.143631114 | BT65: 0.198 | BU65: 0.3500548 | CP65: 6300 | CQ65: 7.126339326 | CR65: 7.937128128 | CS65: 8.694199485 | CT65: 9.408132179 | DD65: 9.626345495
A66: 6400 | B66: 0.02512427596 | O66: 0.04050526597 | AS66: 6400 | AT66: 0.001356078264 | AU66: 0.003060460179 | AV66: 0.005740984983 | AW66: 0.009579852311 | AX66: 0.01474464236 | AY66: 0.02138981417 | AZ66: 0.02965786323 | BA66: 0.03968027439 | BL66: 6400 | BM66: 0.02775266325 | BN66: 0.04256251139 | BO66: 0.0566426048 | BP66: 0.0717982947 | BQ66: 0.08938741748 | BR66: 0.11175 | BS66: 0.143631114 | BT66: 0.198 | BU66: 0.3500548 | CP66: 6400 | CQ66: 7.092062433 | CR66: 7.898951432 | CS66: 8.652381361 | CT66: 9.362880119 | DD66: 9.543008987
A67: 6500 | B67: 0.02519671337 | O67: 0.03960241569 | AS67: 6500 | AT67: 0.001335599627 | AU67: 0.003014611312 | AV67: 0.005655704409 | AW67: 0.009438799616 | AX67: 0.01452952185 | AY67: 0.02108066529 | AZ67: 0.02923332276 | BA67: =IF(0.95*$AS67>10^((LOG10(1/($AN$1*BA$1^$AN$3+$AN$4*$AS67*BA$1^$AN$2))-$Y$1-$Z$1)/$Y$2),#N/A, 1/($AN$1*BA$1^$AN$3+$AN$4*$AS67*BA$1^$AN$2)) -> 0.03911781386 | BE67: =IF(0.95*$AS67>10^((LOG10(1/($AN$1*BE$1^$AN$3+$AN$4*$AS67*BE$1^$AN$2))-$Y$1-$Z$1)/$Y$2),#N/A, 1/($AN$1*BE$1^$AN$3+$AN$4*$AS67*BE$1^$AN$2)) ->  | BL67: 6500 | BM67: 0.02775266325 | BN67: 0.04256251139 | BO67: 0.0566426048 | BP67: 0.0717982947 | BQ67: 0.08938741748 | BR67: 0.11175 | BS67: 0.143631114 | BT67: 0.198 | BU67: 0.3500548 | CP67: 6500 | CQ67: 7.058478044 | CR67: 7.861546029 | CS67: 8.611408098 | CT67: 9.318542296 | DD67: 9.461669364
A68: 6600 | B68: 0.02526824891 | O68: =10^($Y$3+$Y$2*LOG10($A68)) -> 0.0387330179 | AS68: =A68 -> 6600 | AT68: 0.0013157303 | AU68: 0.002970115896 | AV68: 0.005572920384 | AW68: 0.009301840339 | AX68: 0.01432058819 | AY68: 0.0207803254 | AZ68: 0.02882076501 | BA68: 0.03857107602 | BL68: =A68 -> 6600 | BM68: 0.02775266325 | BN68: 0.04256251139 | BO68: 0.0566426048 | BP68: 0.0717982947 | BQ68: 0.08938741748 | BR68: 0.11175 | BS68: 0.143631114 | BT68: 0.198 | BU68: 0.3500548 | CP68: =A68 -> 6600 | CQ68: 7.025561833 | CR68: 7.824884823 | CS68: 8.571250017 | CT68: 9.275086595 | DD68: =10^($BY$3+$BY$2*LOG10($CP68)) -> 9.382249145
A69: 6700 | B69: 0.02533890722 | O69: 0.03789535397 | AS69: 6700 | AT69: =IF(0.95*$AS69>10^((LOG10(1/($AN$1*AT$1^$AN$3+$AN$4*$AS69*AT$1^$AN$2))-$Y$1-$Z$1)/$Y$2),#N/A, 1/($AN$1*AT$1^$AN$3+$AN$4*$AS69*AT$1^$AN$2)) -> 0.001296443487 | AU69: 0.002926914872 | AV69: 0.00549252486 | AW69: 0.009168798838 | AX69: 0.01411757825 | AY69: 0.02048842328 | AZ69: 0.02841968972 | BA69: 0.03803941069 | BL69: 6700 | BM69: =BM68 -> 0.02775266325 | BN69: 0.04256251139 | BO69: 0.0566426048 | BP69: 0.0717982947 | BQ69: 0.08938741748 | BR69: 0.11175 | BS69: 0.143631114 | BT69: 0.198 | BU69: 0.3500548 | CP69: 6700 | CQ69: 6.993290679 | CR69: 7.788942066 | CS69: 8.531878913 | CT69: 9.232482494 | DD69: 9.304674971
A70: 6800 | B70: 0.02540871191 | O70: 0.03708781747 | AS70: 6800 | AT70: 0.001277713942 | AU70: 0.002884952568 | AV70: 0.005414415938 | AW70: 0.009039509381 | AX70: 0.01392024363 | AY70: 0.02020460829 | AZ70: 0.02802962411 | BA70: 0.03752220307 | BL70: 6800 | BM70: 0.02775266325 | BN70: 0.04256251139 | BO70: 0.0566426048 | BP70: 0.0717982947 | BQ70: 0.08938741748 | BR70: 0.11175 | BS70: 0.143631114 | BT70: 0.198 | BU70: 0.3500548 | CP70: 6800 | CQ70: 6.961642593 | CR70: 7.753693266 | CS70: 8.493267957 | CT70: 9.190700963 | DD70: 9.228877325
A71: 6900 | B71: 0.02547768562 | O71: 0.03630890531 | AS71: 6900 | AT71: 0.001259517857 | AU71: 0.00284417646 | AV71: 0.005338497432 | AW71: 0.008913815451 | AX71: 0.01372834962 | AY71: 0.01992854893 | AZ71: 0.02765012097 | BA71: 0.03701887134 | BL71: 6900 | BM71: 0.02775266325 | BN71: 0.04256251139 | BO71: 0.0566426048 | BP71: 0.0717982947 | BQ71: 0.08938741748 | BR71: 0.11175 | BS71: 0.143631114 | BT71: 0.198 | BU71: 0.3500548 | CP71: 6900 | CQ71: 6.930596645 | CR71: 7.719115111 | CS71: 8.455391615 | CT71: 9.149714368 | DD71: 9.154790285
A72: 7000 | B72: 0.02554585009 | O72: 0.03555720974 | AS72: 7000 | AT72: 0.00124183276 | AU72: 0.002804536952 | AV72: 0.005264678478 | AW72: 0.008791569118 | AX72: 0.01354167429 | AY72: 0.0196599316 | AZ72: 0.02728075701 | BA72: 0.03652886449 | BL72: 7000 | BM72: 0.02775266325 | BN72: 0.04256251139 | BO72: 0.0566426048 | BP72: 0.0717982947 | BQ72: 0.08938741748 | BR72: 0.11175 | BS72: 0.143631114 | BT72: 0.198 | BU72: 0.3500548 | CP72: 7000 | CQ72: 6.900132898 | CR72: 7.685185395 | CS72: 8.418225563 | DD72: 9.082351281
A73: 7100 | B73: 0.02561322616 | O73: 0.03483141101 | AS73: 7100 | AT73: 0.001224637425 | AU73: 0.002765987174 | AV73: 0.005192873167 | AW73: 0.008672630457 | AX73: 0.01336000759 | AY73: 0.01939845935 | AZ73: 0.02692113126 | BA73: 0.0360516603 | BL73: 7100 | BM73: 0.02775266325 | BN73: 0.04256251139 | BO73: 0.0566426048 | BP73: 0.0717982947 | BQ73: 0.08938741748 | BR73: 0.11175 | BS73: 0.143631114 | BT73: 0.198 | BU73: 0.3500548 | CP73: 7100 | CQ73: 6.870232346 | CR73: 7.651882953 | CS73: 8.381746616 | DD73: 9.011500885
A74: 7200 | B74: 0.02567983386 | O74: 0.03413027077 | AS74: 7200 | AT74: 0.001207911785 | AU74: 0.002728482799 | AV74: 0.005123000215 | AW74: 0.008556867014 | AX74: 0.01318315063 | AY74: 0.01914385085 | AZ74: 0.0265708636 | BA74: 0.03558676349 | BL74: 7200 | BM74: 0.02775266325 | BN74: 0.04256251139 | BO74: 0.0566426048 | BP74: 0.0717982947 | BQ74: 0.08938741748 | BR74: 0.11175 | BS74: 0.143631114 | BT74: 0.198 | BU74: 0.3500548 | CP74: 7200 | CQ74: 6.840876864 | CR74: 7.619187593 | CS74: 8.345932658 | DD74: 8.942182611
A75: 7300 | B75: 0.02574569245 | O75: 0.03345262598 | AS75: 7300 | AT75: 0.001191636854 | AU75: 0.002691981871 | AV75: 0.005054982656 | AW75: 0.008444153316 | AX75: 0.01301091488 | AY75: 0.01889583933 | AZ75: 0.02622959346 | BA75: 0.035133704 | BL75: 7300 | BM75: 0.02775266325 | BN75: 0.04256251139 | BO75: 0.0566426048 | BP75: 0.0717982947 | BQ75: 0.08938741748 | BR75: 0.11175 | BS75: 0.143631114 | BT75: 0.198 | BU75: 0.3500548 | CP75: 7300 | CQ75: 6.812049149 | CR75: 7.587080047 | CS75: 8.31076258 | DD75: 8.874342729
A76: 7400 | B76: 0.02581082044 | O76: 0.03279738338 | AS76: 7400 | AT76: 0.001175794657 | AU76: 0.002656444651 | AV76: 0.004988747556 | AW76: 0.008334370411 | AX76: 0.01284312156 | AY76: 0.01865417168 | AZ76: 0.02589697854 | BA76: 0.0346920354 | BL76: 7400 | BM76: 0.02775266325 | BN76: 0.04256251139 | BO76: 0.0566426048 | BP76: 0.0717982947 | BQ76: 0.08938741748 | BR76: 0.11175 | BS76: 0.143631114 | BT76: 0.198 | BU76: 0.3500548 | CP76: 7400 | CQ76: 6.783732675 | CR76: 7.555541908 | CS76: 8.276216221 | DD76: 8.807930095
A77: 7500 | B77: 0.02587523566 | O77: 0.03216351446 | AS77: 7500 | AT77: 0.001160368161 | AU77: 0.002621833469 | AV77: 0.004924225755 | AW77: 0.008227405458 | AX77: 0.01267960098 | AY77: 0.01841860757 | AZ77: 0.02557269371 | BA77: 0.03426133344 | BL77: 7500 | BM77: 0.02775266325 | BN77: 0.04256251139 | BO77: 0.0566426048 | BP77: 0.0717982947 | BQ77: 0.08938741748 | BR77: 0.11175 | BS77: 0.143631114 | BT77: 0.198 | BU77: 0.3500548 | CP77: 7500 | CQ77: 6.755911649 | CR77: 7.524555585 | CS77: 8.242274314 | DD77: 8.742895997
A78: 7600 | B78: 0.02593895525 | O78: 0.03155005077 | AS78: 7600 | AT78: 0.001145341216 | AU78: 0.002588112595 | AV78: 0.004861351625 | AW78: 0.008123151332 | AX78: 0.01252019199 | AY78: 0.01818891866 | AZ78: 0.0252564299 | BA78: 0.03384119468 | BL78: 7600 | BM78: 0.02775266325 | BN78: 0.04256251139 | BO78: 0.0566426048 | BP78: 0.0717982947 | BQ78: 0.08938741748 | BR78: 0.11175 | BS78: 0.143631114 | BT78: 0.198 | BU78: 0.3500548 | CP78: 7600 | CQ78: 6.728570967 | CR78: 7.494104257 | CS78: 8.20891843 | DD78: 8.679194005
A79: 7700 | B79: 0.02600199572 | O79: 0.03095607974 | AS79: 7700 | AT79: 0.001130698498 | AU79: 0.002555248112 | AV79: 0.004800062848 | AW79: 0.008021506271 | AX79: 0.01236474144 | AY79: 0.01796488785 | AZ79: 0.02494789315 | BL79: 7700 | BM79: 0.02775266325 | BN79: 0.04256251139 | BO79: 0.0566426048 | BP79: 0.0717982947 | BQ79: 0.08938741748 | BR79: 0.11175 | BS79: 0.143631114 | BT79: 0.198 | BU79: 0.3500548 | CP79: 7700 | CQ79: 6.701696177 | CR79: 7.464171828 | CS79: 8.17613094 | DD79: 8.616779838
A80: 7800 | B80: 0.026064373 | O80: 0.03038074073 | AS80: 7800 | AT80: 0.001116425456 | AU80: 0.002523207807 | AV80: 0.004740300209 | AW80: 0.007922373544 | AX80: 0.01221310369 | AY80: 0.01774630861 | AZ80: 0.02464680369 | BL80: 7800 | BM80: 0.02775266325 | BN80: 0.04256251139 | BO80: 0.0566426048 | BP80: 0.0717982947 | BQ80: 0.08938741748 | BR80: 0.11175 | BS80: 0.143631114 | BT80: 0.198 | BU80: 0.3500548 | CP80: 7800 | CQ80: 6.675273443 | CR80: 7.434742886 | CS80: 8.143894961 | DD80: 8.555611236
A81: 7900 | B81: 0.02612610244 | O81: 0.0298232215 | AS81: 7900 | AT81: 0.001102508265 | AU81: 0.002491961059 | AV81: 0.004682007406 | AW81: 0.007825661144 | AX81: 0.01206514017 | AY81: 0.01753298436 | AZ81: 0.02435289511 | BL81: 7900 | BM81: 0.02775266325 | BN81: 0.04256251139 | BO81: 0.0566426048 | BP81: 0.0717982947 | BQ81: 0.08938741748 | BR81: 0.11175 | BS81: 0.143631114 | BT81: 0.198 | BU81: 0.3500548 | CP81: 7900 | CQ81: 6.64928951 | CR81: 7.405802669 | CS81: 8.112194324 | DD81: 8.495647846
A82: 8000 | B82: 0.02618719883 | D82: =IF(10^($R$1+$R$2*LOG10(D$1)+$R$3*LOG10($A82))>1.05*$O82,#N/A,10^($R$1+$R$2*LOG10(D$1)+$R$3*LOG10($A82))) ->  | O82: 0.02928275489 | AS82: 8000 | AT82: 0.001088933781 | AU82: 0.002461478748 | AV82: 0.004625130872 | AW82: 0.0077312815 | AX82: 0.01192071893 | AY82: 0.01732472783 | AZ82: 0.02406591354 | BL82: 8000 | BM82: 0.02775266325 | BN82: 0.04256251139 | BO82: 0.0566426048 | BP82: 0.0717982947 | BQ82: 0.08938741748 | BR82: 0.11175 | BS82: 0.143631114 | BT82: 0.198 | BU82: 0.3500548 | CP82: 8000 | CQ82: 6.623731672 | CR82: 7.377337026 | CS82: 8.081013527 | DD82: 8.436851112
A83: 8100 | B83: 0.02624767647 | O83: 0.02875861582 | AS83: 8100 | AT83: 0.001075689499 | AU83: 0.002431733159 | AV83: 0.004569619613 | AW83: 0.007639151218 | AX83: 0.01177971427 | AY83: 0.01712136056 | AZ83: 0.02378561693 | BL83: 8100 | BM83: 0.02775266325 | BN83: 0.04256251139 | BO83: 0.0566426048 | BP83: 0.0717982947 | BQ83: 0.08938741748 | BR83: 0.11175 | BS83: 0.143631114 | BT83: 0.198 | BU83: 0.3500548 | CP83: 8100 | CQ83: 6.598587747 | CR83: 7.349332387 | CS83: 8.050337707 | DD83: 8.379184171
A84: 8200 | B84: 0.02630754914 | O84: 0.02825011846 | AS84: 8200 | AT84: 0.001062763517 | AU84: 0.002402697905 | AV84: 0.004515425054 | AW84: 0.00754919083 | AX84: 0.01164200638 | AY84: 0.01692271237 | AZ84: 0.02351177441 | BL84: 8200 | BM84: 0.02775266325 | BN84: =BN83 -> 0.04256251139 | BO84: =BO83 -> 0.0566426048 | BP84: =BP83 -> 0.0717982947 | BQ84: =BQ83 -> 0.08938741748 | BR84: =BR83 -> 0.11175 | BS84: =BS83 -> 0.143631114 | BT84: =BT83 -> 0.198 | BU84: =BU83 -> 0.3500548 | CP84: 8200 | CQ84: 6.573846043 | CR84: 7.321775732 | CS84: 8.020152601 | DD84: 8.322611765
A85: 8300 | B85: 0.02636683016 | O85: 0.02775661371 | AS85: 8300 | AT85: 0.001050144495 | AU85: 0.002374347839 | AV85: 0.004462500897 | AW85: 0.007461324569 | AX85: 0.01150748097 | AY85: 0.01672862089 | AZ85: 0.02324416559 | BL85: 8300 | BM85: 0.02775266325 | BN85: 0.04256251139 | BO85: 0.0566426048 | BP85: 0.0717982947 | BQ85: 0.08938741748 | BR85: 0.11175 | BS85: 0.143631114 | BT85: 0.198 | BU85: 0.3500548 | CP85: 8300 | CQ85: 6.549495337 | CR85: 7.294654561 | CS85: 7.990444516 | DD85: 8.267100147
A86: 8400 | B86: 0.0264255324 | O86: 0.02727748677 | AS86: 8400 | AT86: 0.001037821627 | AU86: 0.002346658992 | AV86: 0.004410802988 | AW86: 0.007375480156 | AX86: 0.01137602897 | AY86: 0.01653893111 | AZ86: =IF(0.95*$AS86>10^((LOG10(1/($AN$1*AZ$1^$AN$3+$AN$4*$AS86*AZ$1^$AN$2))-$Y$1-$Z$1)/$Y$2),#N/A, 1/($AN$1*AZ$1^$AN$3+$AN$4*$AS86*AZ$1^$AN$2)) -> 0.02298258 | BL86: 8400 | BM86: 0.02775266325 | BN86: 0.04256251139 | BO86: 0.0566426048 | BP86: 0.0717982947 | BQ86: 0.08938741748 | BR86: 0.11175 | BS86: 0.143631114 | BT86: 0.198 | BU86: 0.3500548 | CP86: 8400 | CQ86: 6.52552485 | CR86: 7.267956867 | CS86: 7.961200302 | DB86: =IF($CN$1*DB$1^$CN$2*$CP86^$CN$3>$DD86,#N/A,$CN$1*DB$1^$CN$2*$CP86^$CN$3) ->  | DD86: 8.212617
A87: 8500 | B87: 0.0264836683 | O87: 0.02681215497 | AS87: 8500 | AT87: 0.00102578461 | AU87: 0.002319608496 | AV87: 0.004360289198 | AW87: 0.007291588597 | AX87: 0.01124754625 | AY87: 0.01635349497 | AZ87: 0.02272681657 | BL87: 8500 | BM87: 0.02775266325 | BN87: 0.04256251139 | BO87: 0.0566426048 | BP87: 0.0717982947 | BQ87: 0.08938741748 | BR87: 0.11175 | BS87: 0.143631114 | BT87: 0.198 | BU87: 0.3500548 | CP87: 8500 | CQ87: =IF($CN$1*CQ$1^$CN$2*$CP87^$CN$3>$DD87,#N/A,$CN$1*CQ$1^$CN$2*$CP87^$CN$3) -> 6.501924224 | CR87: 7.241671114 | CS87: 7.932407321 | DD87: 8.159131363
A88: 8600 | B88: 0.0265412499 | O88: 0.02636006576 | AS88: 8600 | AT88: 0.00101402361 | AU88: 0.002293174528 | AV88: 0.004310919305 | AW88: 0.007209584005 | AX88: 0.01112193333 | AY88: 0.01617217098 | AZ88: 0.02247668305 | BL88: 8600 | BM88: 0.02775266325 | BN88: 0.04256251139 | BO88: 0.0566426048 | BP88: 0.0717982947 | BQ88: 0.08938741748 | BR88: 0.11175 | BS88: 0.143631114 | BT88: 0.198 | BU88: 0.3500548 | CP88: 8600 | CQ88: 6.4786835 | CR88: 7.215786211 | CS88: 7.904053425 | DD88: 8.106613556
A89: 8700 | B89: 0.02659828883 | O89: 0.02592069477 | AS89: 8700 | AT89: 0.001002529241 | AU89: 0.002267336249 | AV89: 0.004262654888 | AW89: 0.007129403423 | AX89: 0.01099909511 | AY89: 0.01599482386 | AZ89: 0.02223199558 | BL89: 8700 | BM89: 0.02775266325 | BN89: 0.04256251139 | BO89: 0.0566426048 | BP89: 0.0717982947 | BQ89: 0.08938741748 | BR89: 0.11175 | BS89: 0.143631114 | BT89: 0.198 | BU89: 0.3500548 | CP89: 8700 | CQ89: 6.4557931 | CR89: 7.190291489 | CS89: 7.876126926 | DD89: 8.055035115
A90: 8800 | B90: 0.02665479636 | O90: 0.02549354412 | AS90: 8800 | AT90: 0.0009912925384 | AU90: 0.002242073746 | AV90: 0.004215459228 | AW90: 0.007050986663 | AX90: 0.01087894068 | AY90: 0.01582132419 | AZ90: 0.02199257821 | BL90: 8800 | BM90: 0.02775266325 | BN90: 0.04256251139 | BO90: 0.0566426048 | BP90: 0.0717982947 | BQ90: 0.08938741748 | BR90: 0.11175 | BS90: 0.143631114 | BT90: 0.198 | BU90: 0.3500548 | CP90: 8800 | CQ90: 6.433243806 | CR90: 7.165176682 | CS90: 7.848616579 | DD90: 8.004368726
A91: 8900 | O91: 0.02507814078 | AS91: 8900 | AT91: 0.0009803049337 | AU91: 0.002217367986 | AV91: 0.004169297214 | AW91: 0.006974276158 | AX91: 0.01076138301 | AY91: 0.01565154811 | AZ91: 0.02175826249 | BL91: 8900 | BM91: 0.02775266325 | BN91: 0.04256251139 | BO91: 0.0566426048 | BP91: 0.0717982947 | BQ91: 0.08938741748 | BR91: 0.11175 | BS91: 0.143631114 | BT91: 0.198 | BU91: 0.3500548 | CP91: 8900 | CQ91: 6.411026744 | CR91: 7.140431907 | CS91: 7.82151156 | DD91: 7.954588171
A92: 9000 | O92: 0.02467403507 | AS92: 9000 | AT92: 0.0009695582346 | AU92: 0.002193200765 | AV92: 0.004124135257 | AW92: 0.006899216818 | AX92: 0.01064633884 | AY92: 0.01548537703 | AZ92: 0.02152888709 | BL92: 9000 | BM92: 0.02775266325 | BN92: 0.04256251139 | BO92: 0.0566426048 | BP92: 0.0717982947 | BQ92: 0.08938741748 | BR92: 0.11175 | BS92: 0.143631114 | BT92: 0.198 | BU92: 0.3500548 | CP92: 9000 | CQ92: 6.389133369 | CR92: 7.116047645 | CS92: 7.794801441 | DD92: 7.905668265
A93: 9100 | O93: 0.02428079926 | AS93: 9100 | AT93: 0.0009590446042 | AU93: 0.002169554664 | AV93: 0.004079941207 | AW93: 0.0068257559 | AX93: 0.01053372841 | AY93: 0.01532269733 | AZ93: 0.02130429737 | BL93: 9100 | BM93: 0.02775266325 | BN93: 0.04256251139 | BO93: 0.0566426048 | BP93: 0.0717982947 | BQ93: 0.08938741748 | BR93: 0.11175 | BS93: 0.143631114 | BT93: 0.198 | BU93: 0.3500548 | CP93: 9100 | CQ93: 6.367555446 | CR93: 7.092014726 | CS93: 7.768476177 | DD93: 7.857584813
A94: 9200 | O94: 0.02389802628 | AS94: 9200 | AT94: 0.0009487565417 | AU94: 0.002146413007 | AV94: 0.004036684278 | AW94: 0.006753842882 | AX94: 0.01042347528 | AY94: 0.01516340012 | AZ94: 0.02108434513 | BL94: 9200 | BM94: 0.02775266325 | BN94: 0.04256251139 | BO94: 0.0566426048 | BP94: 0.0717982947 | BQ94: 0.08938741748 | BR94: 0.11175 | BS94: 0.143631114 | BT94: 0.198 | BU94: 0.3500548 | CP94: 9200 | CQ94: 6.346285038 | CR94: 7.068324307 | CS94: 7.742526083 | DD94: 7.810314554
A95: 9300 | O95: 0.0235253285 | AS95: 9300 | AT95: 0.000938686865 | AU95: 0.002123759824 | AV95: 0.003994334975 | AW95: 0.006683429351 | AX95: 0.01031550622 | AY95: 0.01500738099 | AZ95: 0.02086888819 | BL95: 9300 | BM95: 0.02775266325 | BN95: 0.04256251139 | BO95: 0.0566426048 | BP95: 0.0717982947 | BQ95: 0.08938741748 | BR95: 0.11175 | BS95: 0.143631114 | BT95: 0.198 | BU95: 0.3500548 | CP95: 9300 | CQ95: 6.325314489 | CR95: 7.044967865 | CS95: 7.716941821 | DD95: 7.763835118
A96: 9400 | O96: 0.02316233662 | AS96: 9400 | AT96: 0.0009288286936 | AU96: 0.002101579808 | AV96: 0.003952865029 | AW96: 0.006614468891 | AX96: 0.01020975097 | AY96: 0.01485453978 | AZ96: 0.02065779013 | BL96: 9400 | BM96: 0.02775266325 | BN96: 0.04256251139 | BO96: 0.0566426048 | BP96: 0.0717982947 | BQ96: 0.08938741748 | BR96: 0.11175 | BS96: 0.143631114 | BT96: 0.198 | BU96: 0.3500548 | CP96: 9400 | CQ96: 6.304636416 | CR96: 7.021937175 | CS96: 7.691714382 | DD96: 7.718124983
A97: 9500 | O97: 0.02280869861 | AS97: 9500 | AT97: 0.000919175433 | AU97: 0.00207985829 | AV97: 0.003912247333 | AW97: 0.006546916983 | AX97: 0.01010614214 | AY97: 0.01470478037 | AZ97: 0.02045092001 | BL97: 9500 | BM97: 0.02775266325 | BN97: 0.04256251139 | BO97: 0.0566426048 | BP97: 0.0717982947 | BQ97: 0.08938741748 | BR97: 0.11175 | BS97: 0.143631114 | BT97: 0.198 | BU97: 0.3500548 | CP97: 9500 | CQ97: 6.284243693 | CR97: 6.9992243 | CS97: 7.666835073 | DD97: 7.673163432
A98: 9600 | O98: 0.02246407873 | AS98: 9600 | AT98: 0.0009097207599 | AU98: 0.002058581196 | AV98: 0.003872455882 | AW98: 0.006480730907 | AX98: 0.01000461503 | AY98: 0.01455801049 | AZ98: 0.02024815206 | BL98: =A98 -> 9600 | BM98: 0.02775266325 | BN98: 0.04256251139 | BO98: 0.0566426048 | BP98: 0.0717982947 | BQ98: 0.08938741748 | BR98: 0.11175 | BS98: 0.143631114 | BT98: 0.198 | BU98: 0.3500548 | CP98: 9600 | CQ98: 6.264129441 | CR98: 6.976821578 | DD98: 7.628930518
A99: 9700 | O99: 0.02212815663 | AS99: =A99 -> 9700 | AT99: 0.0009004586088 | AU99: 0.002037735027 | AV99: 0.003833465718 | AW99: 0.006415869655 | AX99: 0.009905107524 | AY99: 0.01441414151 | AZ99: 0.02004936547 | BL99: =A99 -> 9700 | BM99: 0.02775266325 | BN99: 0.04256251139 | BO99: 0.0566426048 | BP99: 0.0717982947 | BQ99: 0.08938741748 | BR99: 0.11175 | BS99: 0.143631114 | BT99: 0.198 | BU99: 0.3500548 | CP99: 9700 | CQ99: 6.244287013 | CR99: 6.954721608 | DD99: 7.585407026
A100: 9800 | O100: 0.02180062647 | AS100: =A100 -> 9800 | AT100: 0.0008913831585 | AU100: 0.002017306821 | AV100: 0.003795252879 | AW100: 0.006352293842 | AX100: 0.009807559965 | AY100: 0.01427308826 | AZ100: 0.01985444411 | BL100: =A100 -> 9800 | BM100: 0.02775266325 | BN100: 0.04256251139 | BO100: 0.0566426048 | BP100: 0.0717982947 | BQ100: 0.08938741748 | BR100: 0.11175 | BS100: 0.143631114 | BT100: 0.198 | BU100: 0.3500548 | CP100: 9800 | CQ100: 6.224709992 | CR100: 6.93291724 | DD100: 7.542574439
A101: 9900 | O101: 0.02148119616 | AS101: 9900 | AT101: 0.0008824888203 | AU101: 0.001997284134 | AV101: 0.00375779435 | AW101: 0.006289965632 | AX101: 0.009711915005 | AY101: 0.01413476889 | AZ101: 0.01966327634 | BL101: =A101 -> 9900 | BM101: 0.02775266325 | BN101: 0.04256251139 | BO101: 0.0566426048 | BP101: 0.0717982947 | BQ101: 0.08938741748 | BR101: 0.11175 | BS101: 0.143631114 | BT101: 0.198 | BU101: 0.3500548 | CP101: 9900 | CQ101: 6.205392173 | CR101: 6.911401564 | DD101: 7.500414904
A102: 10000 | O102: 0.02116958655 | AS102: =A102 -> 10000 | AT102: 0.0008737702263 | AU102: 0.001977655009 | AV102: 0.003721068013 | AW102: 0.006228848655 | AX102: 0.00961811752 | AY102: 0.01399910466 | AZ102: 0.01947575476 | BL102: =A102 -> 10000 | BM102: 0.02775266325 | BN102: 0.04256251139 | BO102: 0.0566426048 | BP102: 0.0717982947 | BQ102: 0.08938741748 | BR102: 0.11175 | BS102: 0.143631114 | BT102: 0.198 | BU102: 0.3500548 | CP102: 10000 | CQ102: 6.186327557 | CR102: 6.890167899 | DD102: 7.458911207

Sheet SDMD_SWNAT
A1: White Spruce - Natural Stand - Stand Density Management Diagram | K1: QMD ON | P1: NAT GYPSY | V1: <-- SELECT A SAMPLE PLOT
K2: TOPH ON
K4: STAND INPUT | P4: STAND OUTPUT | U4: MR
K5: ID | L5: N | M5: tvol | N5: QMD | O5: TopH | P5: BAHA | Q5: TVHA | R5: MVHA | S5: SF | T5: RDI
K6: NAT GYPSY | L6: 4745.37076 | M6: 0.01660937444 | N6: 6.421904702 | O6: 14.10452311 | P6: =IF(L6*(0.00007854*N6^2)=0,"",L6*(0.00007854*N6^2)) -> 15.37052706 | Q6: =IF(M6*L6=0,"",M6*L6) -> 78.81763983 | R6: =IFERROR((LKP!$BJ$4/(1+EXP(LKP!$BJ$2-LKP!$BJ$3*LOG10(M6))))*Q6,"") -> 26.05581107 | S6: =IFERROR(100/(SQRT(L6)*O6),"") -> 0.1029215974 | T6: =IFERROR(L6/(10^((LOG10(M6)-LKP!$Y$3)/LKP!$Y$2)),"") -> 0.4016101547 | U6: =IFERROR(R6/Q6,"") -> 0.3305834979
K7: NAT GYPSY | L7: 4110.842965 | M7: 0.03094695674 | N7: 8.1345479 | O7: 16.54650841 | P7: =IF(L7*(0.00007854*N7^2)=0,"",L7*(0.00007854*N7^2)) -> 21.36429792 | Q7: =IF(M7*L7=0,"",M7*L7) -> 127.2180794 | R7: =IFERROR((LKP!$BJ$4/(1+EXP(LKP!$BJ$2-LKP!$BJ$3*LOG10(M7))))*Q7,"") -> 60.76799618 | S7: =IFERROR(100/(SQRT(L7)*O7),"") -> 0.09426016423 | T7: =IFERROR(L7/(10^((LOG10(M7)-LKP!$Y$3)/LKP!$Y$2)),"") -> 0.5337674888 | U7: =IFERROR(R7/Q7,"") -> 0.4776679265
K8: NAT GYPSY | L8: 3571.753306 | M8: 0.04917798743 | N8: 9.682023125 | O8: 18.69174458 | P8: 26.29690173 | Q8: 175.6516392 | R8: =IFERROR((LKP!$BJ$4/(1+EXP(LKP!$BJ$2-LKP!$BJ$3*LOG10(M8))))*Q8,"") -> 103.6478783 | S8: =IFERROR(100/(SQRT(L8)*O8),"") -> 0.08951780702 | T8: =IFERROR(L8/(10^((LOG10(M8)-LKP!$Y$3)/LKP!$Y$2)),"") -> 0.6377560442 | U8: 0.5900763512
K9: NAT GYPSY | L9: 3118.051632 | M9: 0.07083989774 | N9: 11.10363227 | O9: 20.57691459 | P9: 30.19286602 | Q9: 220.8824587 | R9: =IFERROR((LKP!$BJ$4/(1+EXP(LKP!$BJ$2-LKP!$BJ$3*LOG10(M9))))*Q9,"") -> 148.4266831 | S9: =IFERROR(100/(SQRT(L9)*O9),"") -> 0.08703182569 | T9: =IFERROR(L9/(10^((LOG10(M9)-LKP!$Y$3)/LKP!$Y$2)),"") -> 0.7156107816 | U9: 0.6719713459
K10: NAT GYPSY | L10: 2737.198155 | M10: 0.09523423929 | N10: 12.40765801 | O10: 22.23797094 | P10: 33.09609577 | Q10: 260.6749841 | R10: =IFERROR((LKP!$BJ$4/(1+EXP(LKP!$BJ$2-LKP!$BJ$3*LOG10(M10))))*Q10,"") -> 190.5143822 | S10: =IFERROR(100/(SQRT(L10)*O10),"") -> 0.08595115603 | T10: =IFERROR(L10/(10^((LOG10(M10)-LKP!$Y$3)/LKP!$Y$2)),"") -> 0.7700021188 | U10: 0.7308502687
K11: NAT GYPSY | L11: 2417.041758 | M11: 0.1214096423 | N11: 13.58751232 | O11: 23.70714378 | P11: 35.04733118 | Q11: 293.4521752 | R11: =IFERROR((LKP!$BJ$4/(1+EXP(LKP!$BJ$2-LKP!$BJ$3*LOG10(M11))))*Q11,"") -> 226.8983991 | S11: 0.08579830134 | T11: =IFERROR(L11/(10^((LOG10(M11)-LKP!$Y$3)/LKP!$Y$2)),"") -> 0.8035348939 | U11: 0.7732040117
K12: NAT GYPSY | L12: 2146.907545 | M12: 0.149088717 | N12: 14.67458561 | O12: 25.01222678 | P12: 36.31080955 | Q12: 320.0796915 | R12: =IFERROR((LKP!$BJ$4/(1+EXP(LKP!$BJ$2-LKP!$BJ$3*LOG10(M12))))*Q12,"") -> 257.5564725 | S12: 0.08628612606 | T12: =IFERROR(L12/(10^((LOG10(M12)-LKP!$Y$3)/LKP!$Y$2)),"") -> 0.8220144779 | U12: 0.8046635865
K13: NAT GYPSY | L13: 1917.843474 | M13: 0.1781871064 | N13: 15.69513885 | O13: 26.17676173 | P13: 37.10516613 | Q13: =IF(M13*L13=0,"",M13*L13) -> 341.7349793 | R13: =IFERROR((LKP!$BJ$4/(1+EXP(LKP!$BJ$2-LKP!$BJ$3*LOG10(M13))))*Q13,"") -> 283.2275241 | S13: 0.08723233556 | T13: =IFERROR(L13/(10^((LOG10(M13)-LKP!$Y$3)/LKP!$Y$2)),"") -> 0.8301112167 | U13: 0.8287928987
K14: NAT GYPSY | L14: 1722.51431 | M14: 0.2087325522 | N14: 16.66960635 | O14: 27.22053442 | P14: 37.59277832 | Q14: 359.544808 | R14: =IFERROR((LKP!$BJ$4/(1+EXP(LKP!$BJ$2-LKP!$BJ$3*LOG10(M14))))*Q14,"") -> 304.8356614 | S14: =IFERROR(100/(SQRT(L14)*O14),"") -> 0.08851603122 | T14: =IFERROR(L14/(10^((LOG10(M14)-LKP!$Y$3)/LKP!$Y$2)),"") -> 0.8312794514 | U14: 0.8478377512
K15: NAT GYPSY | L15: 1554.97543 | M15: 0.2408025212 | N15: 17.6130068 | O15: 28.1601346 | P15: 37.8862337 | Q15: 374.442004 | R15: =IFERROR((LKP!$BJ$4/(1+EXP(LKP!$BJ$2-LKP!$BJ$3*LOG10(M15))))*Q15,"") -> 323.2318363 | S15: =IFERROR(100/(SQRT(L15)*O15),"") -> 0.09005410371 | T15: =IFERROR(L15/(10^((LOG10(M15)-LKP!$Y$3)/LKP!$Y$2)),"") -> 0.8279417006 | U15: 0.8632360497
A30: X-axis: Total Live Stem Density (stems/ha), Y-Axis: Average Total Stem Volume (m3) - Log-Log Scale
A32: IDENTIFIER: | C32: =sel_id -> NAT GYPSY
A46: Maximum size-density relationship: | E46: LOG10(tvol)=4.141-1.454*LOG10(N)

Sheet mem (hidden)
A1: ID | B1: N | C1: tvol | D1: QMD | E1: TopH | F1: MYR | G1: MVOLHA | K1: Row Labels | L1: Count of ID
A2: VAND PLOT 2202 | B2: 2080 | C2: 0.08322317331 | D2: 15.19325508 | E2: 11.6 | F2: 2022 | K2: GOA_328.2 | L2: 4
A3: VAND PLOT 2202 | B3: 1160 | C3: 0.1008246321 | D3: 16.47923458 | E3: 11.92 | F3: 2022 | K3: GOA_346.1 | L3: 4
A4: VAND PLOT 2204 | B4: 1840 | C4: 0.07438360704 | D4: 15.10293666 | E4: 12.32 | F4: 2022 | G4: 79.7998205 | K4: GOA_528.1 | L4: 4
A5: VAND PLOT 2204 | B5: 780 | C5: 0.09592670197 | D5: 16.77613537 | E5: 12.32 | F5: 2022 | G5: 51.25894692 | K5: GOA_547.1 | L5: 4
A6: VAND PLOT 2205 | B6: 1820 | C6: 0.09067929216 | D6: 15.8885438 | E6: 11.86 | F6: 2022 | G6: 108.1811127 | K6: GOA_66.3 | L6: 5
A7: VAND PLOT 2205 | B7: 840 | C7: 0.1027287782 | D7: 16.742269 | E7: 11.68 | F7: 2022 | G7: 63.53437269 | K7: NAT GYPSY | L7: 10
A8: VAND PLOT 2206 | B8: 2200 | C8: 0.07101941953 | D8: 14.53719055 | E8: 11.14 | F8: 2022 | G8: 86.64574169 | K8: RSA GYPSY | L8: 10
A9: VAND PLOT 2206 | B9: 1300 | C9: 0.08531239423 | D9: 15.75381273 | E9: 11.14 | F9: 2022 | G9: 70.66819952 | K9: VAND PLOT 2202 | L9: 2
A10: VAND PLOT 2207 | B10: 2220 | C10: 0.06406934993 | D10: 14.08586283 | E10: 10.92 | F10: 2022 | G10: 82.39271977 | K10: VAND PLOT 2204 | L10: 2
A11: VAND PLOT 2207 | B11: 1240 | C11: 0.08216637746 | D11: 15.78399046 | E11: 11.02 | F11: 2022 | G11: 67.94736679 | K11: VAND PLOT 2205 | L11: 2
A12: VAND PLOT 2209 | B12: 2060 | C12: 0.06945667016 | D12: 14.35587563 | E12: 11.38 | F12: 2022 | G12: 76.43888405 | K12: VAND PLOT 2206 | L12: 2
A13: VAND PLOT 2209 | B13: 820 | C13: 0.09376872021 | D13: 16.43709368 | E13: 11.4 | F13: 2022 | G13: 52.02643324 | K13: VAND PLOT 2207 | L13: 2
A14: RSA GYPSY | B14: 2081.872429 | C14: 0.007546702206 | D14: 5.159962944 | E14: 9.609930748 | F14: 30 | G14: 1.497437831 | K14: VAND PLOT 2209 | L14: 2
A15: RSA GYPSY | B15: 1843.261325 | C15: 0.02496939781 | D15: 8.151507426 | E15: 13.02649734 | F15: 40 | G15: 13.39183159 | K15: Grand Total | L15: 53
A16: RSA GYPSY | B16: 1618.966974 | C16: 0.05491377482 | D16: 10.98198039 | E16: 16.00382131 | F16: 50 | G16: 44.5648451
A17: RSA GYPSY | B17: 1418.06643 | C17: 0.09641389723 | D17: 13.57127943 | E17: 18.56969644 | F17: 60 | G17: 89.53335048
A18: RSA GYPSY | B18: 1242.93992 | C18: 0.1473228749 | D18: 15.9102065 | E18: 20.77798536 | F18: 70 | G18: 137.8277652
A19: RSA GYPSY | B19: 1092.47896 | C19: 0.2054357375 | D19: 18.02234337 | E19: 22.68422049 | F19: 80 | G19: 182.7169195
A20: RSA GYPSY | B20: 964.0761618 | C20: 0.269039347 | D20: 19.94476242 | E20: 24.3378727 | F20: 90 | G20: 221.4848239
A21: RSA GYPSY | B21: 854.7065674 | C21: 0.3370488604 | D21: 21.7173333 | E21: 25.78066555 | F21: 100 | G21: 253.7515379
A22: RSA GYPSY | B22: 761.44955 | C22: 0.4089246319 | D22: 23.37690252 | E22: 27.04700028 | F22: 110 | G22: 280.1951056
A23: RSA GYPSY | B23: 681.7027176 | C23: 0.4845116926 | D23: 24.95456313 | E23: 28.16500043 | F23: 120 | G23: 301.8307059
A24: NAT GYPSY | B24: 4745.37076 | C24: 0.01660937444 | D24: 6.421904702 | E24: 14.10452311 | F24: 50 | G24: 18.56732286
A25: NAT GYPSY | B25: 4110.842965 | C25: 0.03094695674 | D25: 8.1345479 | E25: 16.54650841 | F25: 60 | G25: 48.89451741
A26: NAT GYPSY | B26: 3571.753306 | C26: 0.04917798743 | D26: 9.682023125 | E26: 18.69174458 | F26: 70 | G26: 90.21649771
A27: NAT GYPSY | B27: 3118.051632 | C27: 0.07083989774 | D27: 11.10363227 | E27: 20.57691459 | F27: 80 | G27: 135.7264848
A28: NAT GYPSY | B28: 2737.198155 | C28: 0.09523423929 | D28: 12.40765801 | E28: 22.23797094 | F28: 90 | G28: 179.7045466
A29: NAT GYPSY | B29: 2417.041758 | C29: 0.1214096423 | D29: 13.58751232 | E29: 23.70714378 | F29: 100 | G29: 218.3241173
A30: NAT GYPSY | B30: 2146.907545 | C30: 0.149088717 | D30: 14.67458561 | E30: 25.01222678 | F30: 110 | G30: 251.1052352
A31: NAT GYPSY | B31: 1917.843474 | C31: 0.1781871064 | D31: 15.69513885 | E31: 26.17676173 | F31: 120 | G31: 278.6197581
A32: NAT GYPSY | B32: 1722.51431 | C32: 0.2087325522 | D32: 16.66960635 | E32: 27.22053442 | F32: 130 | G32: 301.7627262
A33: NAT GYPSY | B33: 1554.97543 | C33: 0.2408025212 | D33: 17.6130068 | E33: 28.1601346 | F33: 140 | G33: 321.4112964
A34: GOA_346.1 | B34: 1324.110672 | C34: 0.2733472911 | D34: 20.02886616 | E34: 25.93557312 | F34: 1966 | G34: 313.6271382
A35: GOA_346.1 | B35: 1126.482213 | C35: 0.3863855017 | D35: 22.33101986 | E35: 28.91778656 | F35: 1978 | G35: 390.2449613
A36: GOA_346.1 | B36: 968.3794466 | C36: 0.4897459765 | D36: 24.32721336 | E36: 29.856917 | F36: 1988 | G36: 432.5923131
A37: GOA_346.1 | B37: 612.6482213 | C37: 0.5354766836 | D37: 25.31250077 | E37: 29.90375494 | F37: 1993 | G37: 302.3585967
A38: GOA_528.1 | B38: 1600 | C38: 0.1387742936 | D38: 16.3385109 | E38: 20.264 | F38: 1984 | G38: 163.5559055
A39: GOA_528.1 | B39: 1510 | C39: 0.1520739025 | D39: 16.89094535 | E39: 20.616 | F39: 1989 | G39: 175.2957818
A40: GOA_528.1 | B40: 1390 | C40: 0.1745701141 | D40: 17.61998316 | E40: 21.367 | F40: 1995 | G40: 188.3338599
A41: GOA_528.1 | B41: 1350 | C41: 0.1883247039 | D41: 18.32019207 | E41: 21.2 | F41: 2003 | G41: 205.412771
A42: GOA_547.1 | B42: 530 | C42: 0.3032980154 | D42: 21.98324839 | E42: 21.565 | F42: 1985 | G42: 142.9520203
A43: GOA_547.1 | B43: 530 | C43: 0.3862849685 | D43: 23.80447468 | E43: 23.409 | F43: 1990 | G43: 185.8167112
A44: GOA_547.1 | B44: 530 | C44: 0.4880769664 | D44: 26.11307252 | E44: 24.243 | F44: 1995 | G44: 238.5742385
A45: GOA_547.1 | B45: 500.5324814 | C45: 0.7254194985 | D45: 30.04598985 | E45: 26.62747604 | F45: 2016 | G45: 341.0984739
A46: GOA_328.2 | B46: 1520.39555 | C46: 0.2683001169 | D46: 19.21976746 | E46: 27.69741656 | F46: 1966 | G46: 349.7352781
A47: GOA_328.2 | B47: 1297.89864 | C47: 0.4095548072 | D47: 22.32488844 | E47: 30.26991347 | F47: 1980 | G47: 477.8006677
A48: GOA_328.2 | B48: 1223.855389 | C48: 0.4663412767 | D48: 23.8535523 | E48: 29.23102596 | F48: 1990 | G48: 518.4580117
A49: GOA_328.2 | B49: 556.2422744 | C49: 0.4156438802 | D49: 23.26805776 | E49: 28.16242274 | F49: 2000 | G49: 207.1611481
A50: GOA_66.3 | B50: 1112.20959 | C50: 0.2569263468 | D50: 20.39076275 | E50: 23.44646565 | F50: 1961 | G50: 250.8108914
A51: GOA_66.3 | B51: 1033.11913 | C51: 0.3455766198 | D51: 22.15394811 | E51: 26.26831439 | F51: 1968 | G51: 321.3919736
A52: GOA_66.3 | B52: 904.597133 | C52: 0.4505442375 | D52: 25.1240583 | E52: 26.49791399 | F52: 1981 | G52: 373.023023
A53: GOA_66.3 | B53: 923.6691434 | C53: 0.51135253 | D53: 25.52611275 | E53: 28.67865546 | F53: 1991 | G53: 438.6330678
A54: GOA_66.3 | B54: 632.7236777 | C54: 0.6342039669 | D54: 28.6487612 | E54: 28.05847751 | F54: 1997 | G54: 373.7145765

Sheet coeffs (hidden)
A1: lkp | B1: a | C1: b | D1: coeff_logn | E1: coeff_logd | F1: coeff_int | G1: alpha | H1: beta | I1: gamma | J1: delta | K1: slope | L1: int1 | M1: se | N1: c
A2: mratio | B2: -3.447586674 | C2: 2.315079568 | N2: 0.9781984841
A3: qmd | D3: 0.1856927907 | E3: 2.891894724 | F3: -4.918327795
A4: topht1 | G4: 241.9728955 | H4: -1.599128387 | I4: 18.92400849 | J4: -2.857636136
A5: topht2 | G5: 0.0001889149141 | H5: 2.488858299 | I5: -5.80348478e-08 | J5: 2.523860259
A6: topht3 | G6: -0.0007496669938 | H6: 3.252970907e-05 | I6: 2.073932338 | J6: 0.8857659302
A7: maxden1 | K7: -1.453921546 | L7: 4.141398562 | M7: 0.2374551122
A8: maxden2 | K8: -0.5521095926 | L8: 3.081113808 | M8: 0.09596416905
A9: topht4 | B9: 26.61073667 | C9: 0.5910098122 | N9: -0.3061584495
